Workbook

Sheet NRW
D1: Offense | T1: Defense
A2: ID | B2: Spieler | C2: Gegner | D2: PA | E2: AB | F2: R | G2: RBI | H2: H | I2: 2B | J2: 3B | K2: HR | L2: K | M2: BB | N2: HP | O2: SB | P2: CS | Q2: SH | R2: SF | T2: A | U2: PO | V2: E
A3: 1 | B3: Dunford | C3: BaWü | D3: 4 | E3: 3 | F3: 2 | G3: 3 | H3: 2 | J3: 1 | M3: 1
C4: BaWü | D4: 4 | E4: 4 | F4: 2 | G4: 2 | H4: 2 | I4: 1
C5: Bayern | D5: 3 | E5: 3 | F5: 1 | H5: 2
C6: Finale | D6: 4 | E6: 3 | F6: 2 | M6: 1
A8: 2 | B8: Parpart | C8: BaWü | D8: 4 | E8: 2 | F8: 1 | L8: 2 | M8: 2 | O8: 1
C9: BaWü | D9: 4 | E9: 1 | F9: 3 | H9: 1 | J9: 1 | M9: 3
C10: Bayern | D10: 3 | E10: 1 | L10: 1 | M10: 2 | O10: 1
C11: Finale | D11: 4 | E11: 3 | F11: 1 | H11: 2 | L11: 1 | O11: 2
A13: 3 | B13: Weyer | C13: BaWü | D13: 4 | E13: 4 | F13: 1 | G13: 2 | H13: 2 | L13: 1 | O13: 2 | P13: 1
C14: BaWü | D14: 4 | E14: 4 | F14: 2 | G14: 2 | H14: 2 | J14: 1 | O14: 1
C15: Bayern | D15: 3 | E15: 2 | L15: 1 | M15: 1
C16: Finale | D16: 4 | E16: 4 | F16: 2 | G16: 2 | H16: 2
A18: 4 | B18: Elstermeier, J | C18: BaWü | D18: 4 | E18: 2 | F18: 4 | M18: 2 | O18: 2
C19: BaWü | D19: 2 | E19: 1 | L19: 1 | M19: 1
C20: Bayern | D20: 2 | E20: 1 | L20: 1 | M20: 1 | O20: 1
C21: Finale | D21: 2 | E21: 2
A23: 5 | B23: Greven | C23: BaWü | D23: 3 | E23: 3 | O23: 1
C24: BaWü | D24: 4 | F24: 4 | M24: 3 | N24: 1 | O24: 1
C25: Finale | D25: 4 | E25: 2 | M25: 2
A28: 6 | B28: Lankhorst | C28: BaWü | D28: 3 | E28: 1 | G28: 1 | L28: 1 | N28: 1 | R28: 1
C29: BaWü | D29: 2 | E29: 1 | M29: 1
C30: Bayern | D30: 3 | E30: 3 | G30: 1 | L30: 2
C31: Finale | D31: 4 | E31: 3 | Q31: 1
A33: 7 | B33: Elstermeier, S | C33: BaWü | D33: 3 | E33: 2 | L33: 2 | M33: 1
C34: BaWü | D34: 4 | E34: 1 | F34: 3 | L34: 1 | M34: 3 | O34: 1
C35: Bayern | D35: 3 | E35: 2 | F35: 1 | G35: 1 | H35: 1 | L35: 1 | M35: 1
C36: Finale | D36: 4 | E36: 2 | G36: 1 | M36: 1 | Q36: 1
A38: 8 | B38: Kessler | C38: BaWü | D38: 1 | E38: 1
C39: BaWü | D39: 4 | E39: 3 | F39: 1 | G39: 2 | H39: 1 | L39: 2 | M39: 1
A43: 9 | B43: Lucera | C43: BaWü | D43: 2 | E43: 1 | N43: 1
C44: Bayern | D44: 3 | E44: 1 | F44: 1 | M44: 2 | O44: 2
C45: Finale | D45: 2 | E45: 2
A48: 10 | B48: Brockmeier | C48: BaWü | D48: 3 | E48: 2 | F48: 1 | M48: 1 | O48: 2
C49: BaWü | D49: 3 | E49: 2 | F49: 2 | G49: 1 | M49: 1 | O49: 2
C50: Bayern | D50: 1 | E50: 1
C51: Finale | D51: 4 | E51: 4
A53: 11 | B53: Prellwitz | C53: BaWü | F53: 1
A58: 12 | B58: Hager | C58: BaWü | D58: 4 | E58: 1 | F58: 1 | L58: 1 | M58: 3 | O58: 1
C59: Bayern | D59: 1 | E59: 1
A63: 13 | B63: Wahlen | C63: Bayern | D63: 3 | E63: 1 | F63: 1 | G63: 1 | M63: 2 | O63: 1
A68: 14
A73: 15
A78: 16
A83: 17

Sheet BaWü
D1: Offense | T1: Defense
A2: ID | B2: Spieler | C2: Gegner | D2: PA | E2: AB | F2: R | G2: RBI | H2: H | I2: 2B | J2: 3B | K2: HR | L2: K | M2: BB | N2: HP | O2: SB | P2: CS | Q2: SH | R2: SF | T2: A | U2: PO | V2: E
A3: 21 | B3: Schmiedel | C3: NRW | D3: 4 | E3: 3 | L3: 2 | M3: 1
C4: Bayern | D4: 3 | F4: 1 | M4: 1 | N4: 1 | O4: 2 | P4: 1 | Q4: 1
C5: NRW | D5: 3 | E5: 3 | F5: 1 | H5: 1 | O5: 1
A8: 22 | B8: Bucher | C8: NRW | D8: 4 | E8: 3 | H8: 1 | J8: 1 | L8: 1 | M8: 1 | O8: 1
C9: Bayner | D9: 3 | E9: 3 | F9: 1 | H9: 1 | L9: 1 | O9: 1
C10: NRW | D10: 3 | E10: 2 | F10: 2 | H10: 1 | N10: 1 | O10: 3
A13: 23 | B13: Weil | C13: NRW | D13: 4 | E13: 3 | N13: 1
C14: Bayern | D14: 3 | E14: 3
C15: NRW | D15: 3 | E15: 2 | F15: 1 | G15: 1 | H15: 1 | M15: 1 | O15: 1
A18: 24 | B18: Beigel | C18: NRW | D18: 3 | E18: 2 | L18: 1 | O18: 1 | Q18: 1
C19: Bayern | D19: 3 | E19: 2 | G19: 2 | H19: 1 | I19: 1 | L19: 1 | M19: 1 | O19: 2
C20: NRW | D20: 3 | E20: 1 | G20: 1 | H20: 1 | M20: 1 | P20: 1 | Q20: 1
A23: 25 | B23: Freis | C23: NRW | D23: 3 | E23: 3 | H23: 1 | L23: 1
C24: Bayner | D24: 3 | E24: 2 | H24: 1 | M24: 1 | O24: 2 | P24: 1
C25: NRW | D25: 3 | E25: 2 | F25: 1 | G25: 1 | M25: 1
A28: 26 | B28: Kortenkamp | C28: NRW | D28: 3 | E28: 3 | L28: 1
C29: Bayern | D29: 2 | E29: 2 | L29: 2
C30: NRW | D30: 3 | E30: 2 | G30: 1 | L30: 1 | M30: 1
A33: 27 | B33: Lübken | C33: NRW | D33: 3 | E33: 3 | H33: 1 | L33: 1
C34: Bayern | D34: 2 | E34: 2 | L34: 1
C35: NRW | D35: 3 | E35: 2 | F35: 2 | G35: 1 | H35: 2 | M35: 1
A38: 28 | B38: Apel | C38: NRW | D38: 1 | E38: 1 | L38: 1
C39: Bayern | D39: 2 | M39: 2 | P39: 1
C40: NRW | D40: 1 | M40: 1
A43: 29 | B43: Gröschel | C43: NRW | D43: 2 | E43: 2
C44: Bayern | D44: 2 | E44: 1 | M44: 1
A48: 30 | B48: Raupricht | C48: NRW | D48: 3 | E48: 3 | L48: 1
C49: NRW | D49: 3 | E49: 3 | F49: 1 | H49: 1 | O49: 1
A53: 31 | B53: Bär | C53: Bayern | F53: 1
A58: 32 | B58: Kutschera | C58: Bayern | D58: 1 | E58: 1 | L58: 1
A63: 33 | B63: Eisinger | C63: RW | D63: 2 | M63: 2
A68: 34
A73: 35
A78: 36
A83: 37

Sheet Bayern
D1: Offense | T1: Defense
A2: ID | B2: Spieler | C2: Gegner | D2: PA | E2: AB | F2: R | G2: RBI | H2: H | I2: 2B | J2: 3B | K2: HR | L2: K | M2: BB | N2: HP | O2: SB | P2: CS | Q2: SH | R2: SF | T2: A | U2: PO | V2: E
A3: 41 | B3: Ullmann | C3: BaWü | D3: 4 | E3: 2 | F3: 1 | H3: 1 | M3: 2 | O3: 1 | P3: 1
C4: NRW | D4: 4 | E4: 2 | F4: 3 | G4: 1 | H4: 1 | M4: 2 | O4: 2
C5: Finale | D5: 5 | E5: 2 | F5: 1 | M5: 3
A8: 42 | B8: Distler | C8: BaWü | D8: 4 | E8: 1 | F8: 2 | H8: 1 | M8: 3 | O8: 2 | P8: 1
C9: NRW | D9: 4 | E9: 2 | F9: 1 | G9: 1 | L9: 1 | Q9: 2
C10: Finale | D10: 5 | E10: 3 | G10: 3 | H10: 1 | I10: 1 | M10: 1 | Q10: 1
A13: 43 | B13: Schnirch | C13: BaWü | D13: 4 | E13: 3 | F13: 1 | L13: 1 | M13: 1
C14: Finale
A18: 44 | B18: Stepniak | C18: BaWü | D18: 3 | E18: 1 | F18: 1 | M18: 2 | O18: 1
C19: NRW | D19: 4 | E19: 2 | F19: 2 | H19: 1 | M19: 2 | O19: 2
C20: Finale | D20: 4 | E20: 4 | F20: 2 | H20: 1
A23: 45 | B23: Sandner | C23: BaWü | D23: 1 | G23: 1 | M23: 1
C24: NRW | D24: 3 | E24: 2 | G24: 1 | M24: 1
C25: Finale | D25: 4 | E25: 2 | F25: 2 | H25: 1 | I25: 1 | M25: 2
A28: 46 | B28: Kerscher | C28: BaWü | D28: 4 | E28: 2 | F28: 1 | L28: 1 | M28: 1 | Q28: 1
C29: NRW | D29: 4 | E29: 3 | H29: 1 | M29: 1 | O29: 1
A33: 47 | B33: Spengler | C33: BaWü | D33: 3 | E33: 2 | F33: 1 | L33: 1 | M33: 1
C34: NRW | D34: 3 | E34: 2 | M34: 1
C35: Finale | D35: 4 | E35: 1 | F35: 1 | G35: 1 | H35: 1 | M35: 2 | N35: 1
A38: 48 | B38: Eiting | C38: BaWü | D38: 1 | E38: 1 | L38: 1
C39: Finale | D39: 4 | E39: 3 | F39: 1 | H39: 1 | L39: 2 | M39: 1
A43: 49 | B43: Salomon | C43: BaWü | D43: 3 | F43: 1 | G43: 2 | M43: 2 | R43: 1
C44: NRW | D44: 4 | F44: 2 | G44: 2 | M44: 1 | N44: 1 | Q44: 2
C45: Finale | D45: 5 | E45: 3 | F45: 1 | G45: 1 | M45: 2
A48: 50 | B48: Zimmermann | C48: BaWü | D48: 3 | E48: 2 | F48: 1 | G48: 1 | L48: 1 | M48: 1
C49: NRW | D49: 3 | E49: 3 | F49: 1 | H49: 1 | O49: 1
C50: Finale | D50: 5 | E50: 3 | F50: 1 | L50: 1 | M50: 2
A53: 51 | B53: Discherl | C53: BaWü | D53: 3 | E53: 2 | F53: 1 | G53: 1 | L53: 1 | M53: 1
C54: NRW
C55: Finale
A58: 52 | B58: Brosch | C58: BaWü | D58: 3 | E58: 2 | F58: 1 | G58: 2 | H58: 1 | I58: 1 | M58: 1 | O58: 1
C59: Finale | D59: 3 | E59: 3
A63: 53 | B63: Santa Cruz | C63: NRW | D63: 1 | E63: 1 | G63: 2 | H63: 1
A68: 54 | B68: Reinisch | C68: NRW | D68: 3 | F68: 2 | M68: 3
C69: Finale | D69: 2 | E69: 2 | F69: 1 | H69: 1 | L69: 1
A73: 55
A78: 56
A83: 57

Sheet Offense Leaders
C1: Offense | S1: Defense | W1: Percentage
A2: ID | B2: Spieler | C2: PA | D2: AB | E2: R | F2: RBI | G2: H | H2: 2B | I2: 3B | J2: HR | K2: K | L2: BB | M2: HP | N2: SB | O2: CS | P2: SH | Q2: SF | S2: A | T2: PO | U2: E | W2: AVG | X2: SLG | Y2: AVG+SLG | Z2: OBP | AA2: OPS | AC2: FLD
A3: =Bayern!A63 -> 53 | B3: =Bayern!B63 -> Santa Cruz | C3: =SUM(Bayern!D63:D67) -> 1 | D3: =SUM(Bayern!E63:E67) -> 1 | E3: =SUM(NRW!F59:F63) -> 1 | F3: =SUM(Bayern!G63:G67) -> 2 | G3: =SUM(Bayern!H63:H67) -> 1 | H3: =SUM(Bayern!I63:I67) -> 0 | I3: =SUM(Bayern!J63:J67) -> 0 | J3: =SUM(Bayern!K63:K67) -> 0 | K3: =SUM(Bayern!L63:L67) -> 0 | L3: =SUM(Bayern!M63:M67) -> 0 | M3: =SUM(Bayern!N63:N67) -> 0 | N3: =SUM(Bayern!O63:O67) -> 0 | O3: =SUM(Bayern!P63:P67) -> 0 | P3: =SUM(Bayern!Q63:Q67) -> 0 | Q3: =SUM(Bayern!R63:R67) -> 0 | S3: =SUM(Bayern!T63:T67) -> 0 | T3: =SUM(Bayern!U63:U67) -> 0 | U3: =SUM(Bayern!V63:V67) -> 0 | W3: =IF(ISERROR(G3/D3),0,G3/D3) -> 1 | X3: =IF(ISERROR((4*J3+3*I3+2*H3+G3-SUM(H3:J3))/D3),0,(4*J3+3*I3+2*H3+G3-SUM(H3:J3))/D3) -> 1 | Y3: =W3+X3 -> 2 | Z3: =IF(ISERROR((G3+L3+M3)/(D3+L3+M3+Q3)),0,(G3+L3+M3)/(D3+L3+M3+Q3)) -> 1 | AA3: =Z3+X3 -> 2 | AC3: =IF(ISERROR((S3+T3)/(U3+S3+T3)),0,(S3+T3)/(U3+S3+T3)) -> 0
A4: =NRW!A8 -> 2 | B4: =NRW!B8 -> Parpart | C4: =SUM(NRW!D8:D12) -> 15 | D4: =SUM(NRW!E8:E12) -> 7 | E4: =SUM(NRW!F15:F19) -> 6 | F4: =SUM(NRW!G8:G12) -> 0 | G4: =SUM(NRW!H8:H12) -> 3 | H4: =SUM(NRW!I8:I12) -> 0 | I4: =SUM(NRW!J8:J12) -> 1 | J4: =SUM(NRW!K8:K12) -> 0 | K4: =SUM(NRW!L8:L12) -> 4 | L4: =SUM(NRW!M8:M12) -> 7 | M4: =SUM(NRW!N8:N12) -> 0 | N4: =SUM(NRW!O8:O12) -> 4 | O4: =SUM(NRW!P8:P12) -> 0 | P4: =SUM(NRW!Q8:Q12) -> 0 | Q4: =SUM(NRW!R8:R12) -> 0 | S4: =SUM(NRW!T8:T12) -> 0 | T4: =SUM(NRW!U8:U12) -> 0 | U4: =SUM(NRW!V8:V12) -> 0 | W4: =IF(ISERROR(G4/D4),0,G4/D4) -> 0.4285714286 | X4: =IF(ISERROR((4*J4+3*I4+2*H4+G4-SUM(H4:J4))/D4),0,(4*J4+3*I4+2*H4+G4-SUM(H4:J4))/D4) -> 0.7142857143 | Y4: =W4+X4 -> 1.142857143 | Z4: =IF(ISERROR((G4+L4+M4)/(D4+L4+M4+Q4)),0,(G4+L4+M4)/(D4+L4+M4+Q4)) -> 0.7142857143 | AA4: =Z4+X4 -> 1.428571429 | AC4: =IF(ISERROR((S4+T4)/(U4+S4+T4)),0,(S4+T4)/(U4+S4+T4)) -> 0
A5: =Bayern!A68 -> 54 | B5: =Bayern!B68 -> Reinisch | C5: =SUM(Bayern!D68:D72) -> 5 | D5: =SUM(Bayern!E68:E72) -> 2 | E5: =SUM(NRW!F60:F64) -> 1 | F5: =SUM(Bayern!G68:G72) -> 0 | G5: =SUM(Bayern!H68:H72) -> 1 | H5: =SUM(Bayern!I68:I72) -> 0 | I5: =SUM(Bayern!J68:J72) -> 0 | J5: =SUM(Bayern!K68:K72) -> 0 | K5: =SUM(Bayern!L68:L72) -> 1 | L5: =SUM(Bayern!M68:M72) -> 3 | M5: =SUM(Bayern!N68:N72) -> 0 | N5: =SUM(Bayern!O68:O72) -> 0 | O5: =SUM(Bayern!P68:P72) -> 0 | P5: =SUM(Bayern!Q68:Q72) -> 0 | Q5: =SUM(Bayern!R68:R72) -> 0 | S5: =SUM(Bayern!T68:T72) -> 0 | T5: =SUM(Bayern!U68:U72) -> 0 | U5: =SUM(Bayern!V68:V72) -> 0 | W5: =IF(ISERROR(G5/D5),0,G5/D5) -> 0.5 | X5: =IF(ISERROR((4*J5+3*I5+2*H5+G5-SUM(H5:J5))/D5),0,(4*J5+3*I5+2*H5+G5-SUM(H5:J5))/D5) -> 0.5 | Y5: =W5+X5 -> 1 | Z5: =IF(ISERROR((G5+L5+M5)/(D5+L5+M5+Q5)),0,(G5+L5+M5)/(D5+L5+M5+Q5)) -> 0.8 | AA5: =Z5+X5 -> 1.3 | AC5: =IF(ISERROR((S5+T5)/(U5+S5+T5)),0,(S5+T5)/(U5+S5+T5)) -> 0
A6: =NRW!A3 -> 1 | B6: =NRW!B3 -> Dunford | C6: =SUM(NRW!D3:D7) -> 15 | D6: =SUM(NRW!E3:E7) -> 13 | E6: =SUM(NRW!F14:F18) -> 8 | F6: =SUM(NRW!G3:G7) -> 5 | G6: =SUM(NRW!H3:H7) -> 6 | H6: =SUM(NRW!I3:I7) -> 1 | I6: =SUM(NRW!J3:J7) -> 1 | J6: =SUM(NRW!K3:K7) -> 0 | K6: =SUM(NRW!L3:L7) -> 0 | L6: =SUM(NRW!M3:M7) -> 2 | M6: =SUM(NRW!N3:N7) -> 0 | N6: =SUM(NRW!O3:O7) -> 0 | O6: =SUM(NRW!P3:P7) -> 0 | P6: =SUM(NRW!Q3:Q7) -> 0 | Q6: =SUM(NRW!R3:R7) -> 0 | S6: =SUM(NRW!T3:T7) -> 0 | T6: =SUM(NRW!U3:U7) -> 0 | U6: =SUM(NRW!V3:V7) -> 0 | W6: =IF(ISERROR(G6/D6),0,G6/D6) -> 0.4615384615 | X6: =IF(ISERROR((4*J6+3*I6+2*H6+G6-SUM(H6:J6))/D6),0,(4*J6+3*I6+2*H6+G6-SUM(H6:J6))/D6) -> 0.6923076923 | Y6: =W6+X6 -> 1.153846154 | Z6: =IF(ISERROR((G6+L6+M6)/(D6+L6+M6+Q6)),0,(G6+L6+M6)/(D6+L6+M6+Q6)) -> 0.5333333333 | AA6: =Z6+X6 -> 1.225641026 | AC6: =IF(ISERROR((S6+T6)/(U6+S6+T6)),0,(S6+T6)/(U6+S6+T6)) -> 0
A7: =BaWü!A18 -> 24 | B7: =BaWü!B18 -> Beigel | C7: =SUM(BaWü!D18:D22) -> 9 | D7: =SUM(BaWü!E18:E22) -> 5 | E7: =SUM(NRW!F48:F52) -> 3 | F7: =SUM(BaWü!G18:G22) -> 3 | G7: =SUM(BaWü!H18:H22) -> 2 | H7: =SUM(BaWü!I18:I22) -> 1 | I7: =SUM(BaWü!J18:J22) -> 0 | J7: =SUM(BaWü!K18:K22) -> 0 | K7: =SUM(BaWü!L18:L22) -> 2 | L7: =SUM(BaWü!M18:M22) -> 2 | M7: =SUM(BaWü!N18:N22) -> 0 | N7: =SUM(BaWü!O18:O22) -> 3 | O7: =SUM(BaWü!P18:P22) -> 1 | P7: =SUM(BaWü!Q18:Q22) -> 2 | Q7: =SUM(BaWü!R18:R22) -> 0 | S7: =SUM(BaWü!T18:T22) -> 0 | T7: =SUM(BaWü!U18:U22) -> 0 | U7: =SUM(BaWü!V18:V22) -> 0 | W7: =IF(ISERROR(G7/D7),0,G7/D7) -> 0.4 | X7: =IF(ISERROR((4*J7+3*I7+2*H7+G7-SUM(H7:J7))/D7),0,(4*J7+3*I7+2*H7+G7-SUM(H7:J7))/D7) -> 0.6 | Y7: =W7+X7 -> 1 | Z7: =IF(ISERROR((G7+L7+M7)/(D7+L7+M7+Q7)),0,(G7+L7+M7)/(D7+L7+M7+Q7)) -> 0.5714285714 | AA7: =Z7+X7 -> 1.171428571 | AC7: =IF(ISERROR((S7+T7)/(U7+S7+T7)),0,(S7+T7)/(U7+S7+T7)) -> 0
A8: =BaWü!A8 -> 22 | B8: =BaWü!B8 -> Bucher | C8: =SUM(BaWü!D8:D12) -> 10 | D8: =SUM(BaWü!E8:E12) -> 8 | E8: =SUM(NRW!F45:F49) -> 3 | F8: =SUM(BaWü!G8:G12) -> 0 | G8: =SUM(BaWü!H8:H12) -> 3 | H8: =SUM(BaWü!I8:I12) -> 0 | I8: =SUM(BaWü!J8:J12) -> 1 | J8: =SUM(BaWü!K8:K12) -> 0 | K8: =SUM(BaWü!L8:L12) -> 2 | L8: =SUM(BaWü!M8:M12) -> 1 | M8: =SUM(BaWü!N8:N12) -> 1 | N8: =SUM(BaWü!O8:O12) -> 5 | O8: =SUM(BaWü!P8:P12) -> 0 | P8: =SUM(BaWü!Q8:Q12) -> 0 | Q8: =SUM(BaWü!R8:R12) -> 0 | S8: =SUM(BaWü!T8:T12) -> 0 | T8: =SUM(BaWü!U8:U12) -> 0 | U8: =SUM(BaWü!V8:V12) -> 0 | W8: =IF(ISERROR(G8/D8),0,G8/D8) -> 0.375 | X8: =IF(ISERROR((4*J8+3*I8+2*H8+G8-SUM(H8:J8))/D8),0,(4*J8+3*I8+2*H8+G8-SUM(H8:J8))/D8) -> 0.625 | Y8: =W8+X8 -> 1 | Z8: =IF(ISERROR((G8+L8+M8)/(D8+L8+M8+Q8)),0,(G8+L8+M8)/(D8+L8+M8+Q8)) -> 0.5 | AA8: =Z8+X8 -> 1.125 | AC8: =IF(ISERROR((S8+T8)/(U8+S8+T8)),0,(S8+T8)/(U8+S8+T8)) -> 0
A9: =Bayern!A23 -> 45 | B9: =Bayern!B23 -> Sandner | C9: =SUM(Bayern!D23:D27) -> 8 | D9: =SUM(Bayern!E23:E27) -> 4 | E9: =SUM(NRW!F68:F72) -> 0 | F9: =SUM(Bayern!G23:G27) -> 2 | G9: =SUM(Bayern!H23:H27) -> 1 | H9: =SUM(Bayern!I23:I27) -> 1 | I9: =SUM(Bayern!J23:J27) -> 0 | J9: =SUM(Bayern!K23:K27) -> 0 | K9: =SUM(Bayern!L23:L27) -> 0 | L9: =SUM(Bayern!M23:M27) -> 4 | M9: =SUM(Bayern!N23:N27) -> 0 | N9: =SUM(Bayern!O23:O27) -> 0 | O9: =SUM(Bayern!P23:P27) -> 0 | P9: =SUM(Bayern!Q23:Q27) -> 0 | Q9: =SUM(Bayern!R23:R27) -> 0 | S9: =SUM(Bayern!T23:T27) -> 0 | T9: =SUM(Bayern!U23:U27) -> 0 | U9: =SUM(Bayern!V23:V27) -> 0 | W9: =IF(ISERROR(G9/D9),0,G9/D9) -> 0.25 | X9: =IF(ISERROR((4*J9+3*I9+2*H9+G9-SUM(H9:J9))/D9),0,(4*J9+3*I9+2*H9+G9-SUM(H9:J9))/D9) -> 0.5 | Y9: =W9+X9 -> 0.75 | Z9: =IF(ISERROR((G9+L9+M9)/(D9+L9+M9+Q9)),0,(G9+L9+M9)/(D9+L9+M9+Q9)) -> 0.625 | AA9: =Z9+X9 -> 1.125 | AC9: =IF(ISERROR((S9+T9)/(U9+S9+T9)),0,(S9+T9)/(U9+S9+T9)) -> 0
A10: =Bayern!A8 -> 42 | B10: =Bayern!B8 -> Distler | C10: =SUM(Bayern!D8:D12) -> 13 | D10: =SUM(Bayern!E8:E12) -> 6 | E10: =SUM(NRW!F64:F68) -> 0 | F10: =SUM(Bayern!G8:G12) -> 4 | G10: =SUM(Bayern!H8:H12) -> 2 | H10: =SUM(Bayern!I8:I12) -> 1 | I10: =SUM(Bayern!J8:J12) -> 0 | J10: =SUM(Bayern!K8:K12) -> 0 | K10: =SUM(Bayern!L8:L12) -> 1 | L10: =SUM(Bayern!M8:M12) -> 4 | M10: =SUM(Bayern!N8:N12) -> 0 | N10: =SUM(Bayern!O8:O12) -> 2 | O10: =SUM(Bayern!P8:P12) -> 1 | P10: =SUM(Bayern!Q8:Q12) -> 3 | Q10: =SUM(Bayern!R8:R12) -> 0 | S10: =SUM(Bayern!T8:T12) -> 0 | T10: =SUM(Bayern!U8:U12) -> 0 | U10: =SUM(Bayern!V8:V12) -> 0 | W10: =IF(ISERROR(G10/D10),0,G10/D10) -> 0.3333333333 | X10: =IF(ISERROR((4*J10+3*I10+2*H10+G10-SUM(H10:J10))/D10),0,(4*J10+3*I10+2*H10+G10-SUM(H10:J10))/D10) -> 0.5 | Y10: =W10+X10 -> 0.8333333333 | Z10: =IF(ISERROR((G10+L10+M10)/(D10+L10+M10+Q10)),0,(G10+L10+M10)/(D10+L10+M10+Q10)) -> 0.6 | AA10: =Z10+X10 -> 1.1 | AC10: =IF(ISERROR((S10+T10)/(U10+S10+T10)),0,(S10+T10)/(U10+S10+T10)) -> 0
A11: =NRW!A13 -> 3 | B11: =NRW!B13 -> Weyer | C11: =SUM(NRW!D13:D17) -> 15 | D11: =SUM(NRW!E13:E17) -> 14 | E11: =SUM(NRW!F13:F17) -> 5 | F11: =SUM(NRW!G13:G17) -> 6 | G11: =SUM(NRW!H13:H17) -> 6 | H11: =SUM(NRW!I13:I17) -> 0 | I11: =SUM(NRW!J13:J17) -> 1 | J11: =SUM(NRW!K13:K17) -> 0 | K11: =SUM(NRW!L13:L17) -> 2 | L11: =SUM(NRW!M13:M17) -> 1 | M11: =SUM(NRW!N13:N17) -> 0 | N11: =SUM(NRW!O13:O17) -> 3 | O11: =SUM(NRW!P13:P17) -> 1 | P11: =SUM(NRW!Q13:Q17) -> 0 | Q11: =SUM(NRW!R13:R17) -> 0 | S11: =SUM(NRW!T13:T17) -> 0 | T11: =SUM(NRW!U13:U17) -> 0 | U11: =SUM(NRW!V13:V17) -> 0 | W11: =IF(ISERROR(G11/D11),0,G11/D11) -> 0.4285714286 | X11: =IF(ISERROR((4*J11+3*I11+2*H11+G11-SUM(H11:J11))/D11),0,(4*J11+3*I11+2*H11+G11-SUM(H11:J11))/D11) -> 0.5714285714 | Y11: =W11+X11 -> 1 | Z11: =IF(ISERROR((G11+L11+M11)/(D11+L11+M11+Q11)),0,(G11+L11+M11)/(D11+L11+M11+Q11)) -> 0.4666666667 | AA11: =Z11+X11 -> 1.038095238 | AC11: =IF(ISERROR((S11+T11)/(U11+S11+T11)),0,(S11+T11)/(U11+S11+T11)) -> 0
A12: =Bayern!A3 -> 41 | B12: =Bayern!B3 -> Ullmann | C12: =SUM(Bayern!D3:D7) -> 13 | D12: =SUM(Bayern!E3:E7) -> 6 | E12: =SUM(NRW!F54:F58) -> 1 | F12: =SUM(Bayern!G3:G7) -> 1 | G12: =SUM(Bayern!H3:H7) -> 2 | H12: =SUM(Bayern!I3:I7) -> 0 | I12: =SUM(Bayern!J3:J7) -> 0 | J12: =SUM(Bayern!K3:K7) -> 0 | K12: =SUM(Bayern!L3:L7) -> 0 | L12: =SUM(Bayern!M3:M7) -> 7 | M12: =SUM(Bayern!N3:N7) -> 0 | N12: =SUM(Bayern!O3:O7) -> 3 | O12: =SUM(Bayern!P3:P7) -> 1 | P12: =SUM(Bayern!Q3:Q7) -> 0 | Q12: =SUM(Bayern!R3:R7) -> 0 | S12: =SUM(Bayern!T3:T7) -> 0 | T12: =SUM(Bayern!U3:U7) -> 0 | U12: =SUM(Bayern!V3:V7) -> 0 | W12: =IF(ISERROR(G12/D12),0,G12/D12) -> 0.3333333333 | X12: =IF(ISERROR((4*J12+3*I12+2*H12+G12-SUM(H12:J12))/D12),0,(4*J12+3*I12+2*H12+G12-SUM(H12:J12))/D12) -> 0.3333333333 | Y12: =W12+X12 -> 0.6666666667 | Z12: =IF(ISERROR((G12+L12+M12)/(D12+L12+M12+Q12)),0,(G12+L12+M12)/(D12+L12+M12+Q12)) -> 0.6923076923 | AA12: =Z12+X12 -> 1.025641026 | AC12: =IF(ISERROR((S12+T12)/(U12+S12+T12)),0,(S12+T12)/(U12+S12+T12)) -> 0
A13: =BaWü!A63 -> 33 | B13: =BaWü!B63 -> Eisinger | C13: =SUM(BaWü!D63:D67) -> 2 | D13: =SUM(BaWü!E63:E67) -> 0 | E13: =SUM(NRW!F39:F43) -> 1 | F13: =SUM(BaWü!G63:G67) -> 0 | G13: =SUM(BaWü!H63:H67) -> 0 | H13: =SUM(BaWü!I63:I67) -> 0 | I13: =SUM(BaWü!J63:J67) -> 0 | J13: =SUM(BaWü!K63:K67) -> 0 | K13: =SUM(BaWü!L63:L67) -> 0 | L13: =SUM(BaWü!M63:M67) -> 2 | M13: =SUM(BaWü!N63:N67) -> 0 | N13: =SUM(BaWü!O63:O67) -> 0 | O13: =SUM(BaWü!P63:P67) -> 0 | P13: =SUM(BaWü!Q63:Q67) -> 0 | Q13: =SUM(BaWü!R63:R67) -> 0 | S13: =SUM(BaWü!T63:T67) -> 0 | T13: =SUM(BaWü!U63:U67) -> 0 | U13: =SUM(BaWü!V63:V67) -> 0 | W13: =IF(ISERROR(G13/D13),0,G13/D13) -> 0 | X13: =IF(ISERROR((4*J13+3*I13+2*H13+G13-SUM(H13:J13))/D13),0,(4*J13+3*I13+2*H13+G13-SUM(H13:J13))/D13) -> 0 | Y13: =W13+X13 -> 0 | Z13: =IF(ISERROR((G13+L13+M13)/(D13+L13+M13+Q13)),0,(G13+L13+M13)/(D13+L13+M13+Q13)) -> 1 | AA13: =Z13+X13 -> 1 | AC13: =IF(ISERROR((S13+T13)/(U13+S13+T13)),0,(S13+T13)/(U13+S13+T13)) -> 0
A14: =BaWü!A33 -> 27 | B14: =BaWü!B33 -> Lübken | C14: =SUM(BaWü!D33:D37) -> 8 | D14: =SUM(BaWü!E33:E37) -> 7 | E14: =SUM(NRW!F50:F54) -> 1 | F14: =SUM(BaWü!G33:G37) -> 1 | G14: =SUM(BaWü!H33:H37) -> 3 | H14: =SUM(BaWü!I33:I37) -> 0 | I14: =SUM(BaWü!J33:J37) -> 0 | J14: =SUM(BaWü!K33:K37) -> 0 | K14: =SUM(BaWü!L33:L37) -> 2 | L14: =SUM(BaWü!M33:M37) -> 1 | M14: =SUM(BaWü!N33:N37) -> 0 | N14: =SUM(BaWü!O33:O37) -> 0 | O14: =SUM(BaWü!P33:P37) -> 0 | P14: =SUM(BaWü!Q33:Q37) -> 0 | Q14: =SUM(BaWü!R33:R37) -> 0 | S14: =SUM(BaWü!T33:T37) -> 0 | T14: =SUM(BaWü!U33:U37) -> 0 | U14: =SUM(BaWü!V33:V37) -> 0 | W14: =IF(ISERROR(G14/D14),0,G14/D14) -> 0.4285714286 | X14: =IF(ISERROR((4*J14+3*I14+2*H14+G14-SUM(H14:J14))/D14),0,(4*J14+3*I14+2*H14+G14-SUM(H14:J14))/D14) -> 0.4285714286 | Y14: =W14+X14 -> 0.8571428571 | Z14: =IF(ISERROR((G14+L14+M14)/(D14+L14+M14+Q14)),0,(G14+L14+M14)/(D14+L14+M14+Q14)) -> 0.5 | AA14: =Z14+X14 -> 0.9285714286 | AC14: =IF(ISERROR((S14+T14)/(U14+S14+T14)),0,(S14+T14)/(U14+S14+T14)) -> 0
A15: =Bayern!A18 -> 44 | B15: =Bayern!B18 -> Stepniak | C15: =SUM(Bayern!D18:D22) -> 11 | D15: =SUM(Bayern!E18:E22) -> 7 | E15: =SUM(NRW!F67:F70) -> 0 | F15: =SUM(Bayern!G18:G22) -> 0 | G15: =SUM(Bayern!H18:H22) -> 2 | H15: =SUM(Bayern!I18:I22) -> 0 | I15: =SUM(Bayern!J18:J22) -> 0 | J15: =SUM(Bayern!K18:K22) -> 0 | K15: =SUM(Bayern!L18:L22) -> 0 | L15: =SUM(Bayern!M18:M22) -> 4 | M15: =SUM(Bayern!N18:N22) -> 0 | N15: =SUM(Bayern!O18:O22) -> 3 | O15: =SUM(Bayern!P18:P22) -> 0 | P15: =SUM(Bayern!Q18:Q22) -> 0 | Q15: =SUM(Bayern!R18:R22) -> 0 | S15: =SUM(Bayern!T18:T22) -> 0 | T15: =SUM(Bayern!U18:U22) -> 0 | U15: =SUM(Bayern!V18:V22) -> 0 | W15: =IF(ISERROR(G15/D15),0,G15/D15) -> 0.2857142857 | X15: =IF(ISERROR((4*J15+3*I15+2*H15+G15-SUM(H15:J15))/D15),0,(4*J15+3*I15+2*H15+G15-SUM(H15:J15))/D15) -> 0.2857142857 | Y15: =W15+X15 -> 0.5714285714 | Z15: =IF(ISERROR((G15+L15+M15)/(D15+L15+M15+Q15)),0,(G15+L15+M15)/(D15+L15+M15+Q15)) -> 0.5454545455 | AA15: =Z15+X15 -> 0.8311688312 | AC15: =IF(ISERROR((S15+T15)/(U15+S15+T15)),0,(S15+T15)/(U15+S15+T15)) -> 0
A16: =Bayern!A33 -> 47 | B16: =Bayern!B33 -> Spengler | C16: =SUM(Bayern!D33:D37) -> 10 | D16: =SUM(Bayern!E33:E37) -> 5 | E16: =SUM(NRW!F70:F74) -> 0 | F16: =SUM(Bayern!G33:G37) -> 1 | G16: =SUM(Bayern!H33:H37) -> 1 | H16: =SUM(Bayern!I33:I37) -> 0 | I16: =SUM(Bayern!J33:J37) -> 0 | J16: =SUM(Bayern!K33:K37) -> 0 | K16: =SUM(Bayern!L33:L37) -> 1 | L16: =SUM(Bayern!M33:M37) -> 4 | M16: =SUM(Bayern!N33:N37) -> 1 | N16: =SUM(Bayern!O33:O37) -> 0 | O16: =SUM(Bayern!P33:P37) -> 0 | P16: =SUM(Bayern!Q33:Q37) -> 0 | Q16: =SUM(Bayern!R33:R37) -> 0 | S16: =SUM(Bayern!T33:T37) -> 0 | T16: =SUM(Bayern!U33:U37) -> 0 | U16: =SUM(Bayern!V33:V37) -> 0 | W16: =IF(ISERROR(G16/D16),0,G16/D16) -> 0.2 | X16: =IF(ISERROR((4*J16+3*I16+2*H16+G16-SUM(H16:J16))/D16),0,(4*J16+3*I16+2*H16+G16-SUM(H16:J16))/D16) -> 0.2 | Y16: =W16+X16 -> 0.4 | Z16: =IF(ISERROR((G16+L16+M16)/(D16+L16+M16+Q16)),0,(G16+L16+M16)/(D16+L16+M16+Q16)) -> 0.6 | AA16: =Z16+X16 -> 0.8 | AC16: =IF(ISERROR((S16+T16)/(U16+S16+T16)),0,(S16+T16)/(U16+S16+T16)) -> 0
A17: =BaWü!A38 -> 28 | B17: =BaWü!B38 -> Apel | C17: =SUM(BaWü!D38:D42) -> 4 | D17: =SUM(BaWü!E38:E42) -> 1 | E17: =SUM(NRW!F52:F55) -> 1 | F17: =SUM(BaWü!G38:G42) -> 0 | G17: =SUM(BaWü!H38:H42) -> 0 | H17: =SUM(BaWü!I38:I42) -> 0 | I17: =SUM(BaWü!J38:J42) -> 0 | J17: =SUM(BaWü!K38:K42) -> 0 | K17: =SUM(BaWü!L38:L42) -> 1 | L17: =SUM(BaWü!M38:M42) -> 3 | M17: =SUM(BaWü!N38:N42) -> 0 | N17: =SUM(BaWü!O38:O42) -> 0 | O17: =SUM(BaWü!P38:P42) -> 1 | P17: =SUM(BaWü!Q38:Q42) -> 0 | Q17: =SUM(BaWü!R38:R42) -> 0 | S17: =SUM(BaWü!T38:T42) -> 0 | T17: =SUM(BaWü!U38:U42) -> 0 | U17: =SUM(BaWü!V38:V42) -> 0 | W17: =IF(ISERROR(G17/D17),0,G17/D17) -> 0 | X17: =IF(ISERROR((4*J17+3*I17+2*H17+G17-SUM(H17:J17))/D17),0,(4*J17+3*I17+2*H17+G17-SUM(H17:J17))/D17) -> 0 | Y17: =W17+X17 -> 0 | Z17: =IF(ISERROR((G17+L17+M17)/(D17+L17+M17+Q17)),0,(G17+L17+M17)/(D17+L17+M17+Q17)) -> 0.75 | AA17: =Z17+X17 -> 0.75 | AC17: =IF(ISERROR((S17+T17)/(U17+S17+T17)),0,(S17+T17)/(U17+S17+T17)) -> 0
A18: =Bayern!A58 -> 52 | B18: =Bayern!B58 -> Brosch | C18: =SUM(Bayern!D58:D62) -> 6 | D18: =SUM(Bayern!E58:E62) -> 5 | E18: =SUM(NRW!F58:F62) -> 1 | F18: =SUM(Bayern!G58:G62) -> 2 | G18: =SUM(Bayern!H58:H62) -> 1 | H18: =SUM(Bayern!I58:I62) -> 1 | I18: =SUM(Bayern!J58:J62) -> 0 | J18: =SUM(Bayern!K58:K62) -> 0 | K18: =SUM(Bayern!L58:L62) -> 0 | L18: =SUM(Bayern!M58:M62) -> 1 | M18: =SUM(Bayern!N58:N62) -> 0 | N18: =SUM(Bayern!O58:O62) -> 1 | O18: =SUM(Bayern!P58:P62) -> 0 | P18: =SUM(Bayern!Q58:Q62) -> 0 | Q18: =SUM(Bayern!R58:R62) -> 0 | S18: =SUM(Bayern!T58:T62) -> 0 | T18: =SUM(Bayern!U58:U62) -> 0 | U18: =SUM(Bayern!V58:V62) -> 0 | W18: =IF(ISERROR(G18/D18),0,G18/D18) -> 0.2 | X18: =IF(ISERROR((4*J18+3*I18+2*H18+G18-SUM(H18:J18))/D18),0,(4*J18+3*I18+2*H18+G18-SUM(H18:J18))/D18) -> 0.4 | Y18: =W18+X18 -> 0.6 | Z18: =IF(ISERROR((G18+L18+M18)/(D18+L18+M18+Q18)),0,(G18+L18+M18)/(D18+L18+M18+Q18)) -> 0.3333333333 | AA18: =Z18+X18 -> 0.7333333333 | AC18: =IF(ISERROR((S18+T18)/(U18+S18+T18)),0,(S18+T18)/(U18+S18+T18)) -> 0
A19: =BaWü!A23 -> 25 | B19: =BaWü!B23 -> Freis | C19: =SUM(BaWü!D23:D27) -> 9 | D19: =SUM(BaWü!E23:E27) -> 7 | E19: =SUM(NRW!F49:F53) -> 3 | F19: =SUM(BaWü!G23:G27) -> 1 | G19: =SUM(BaWü!H23:H27) -> 2 | H19: =SUM(BaWü!I23:I27) -> 0 | I19: =SUM(BaWü!J23:J27) -> 0 | J19: =SUM(BaWü!K23:K27) -> 0 | K19: =SUM(BaWü!L23:L27) -> 1 | L19: =SUM(BaWü!M23:M27) -> 2 | M19: =SUM(BaWü!N23:N27) -> 0 | N19: =SUM(BaWü!O23:O27) -> 2 | O19: =SUM(BaWü!P23:P27) -> 1 | P19: =SUM(BaWü!Q23:Q27) -> 0 | Q19: =SUM(BaWü!R23:R27) -> 0 | S19: =SUM(BaWü!T23:T27) -> 0 | T19: =SUM(BaWü!U23:U27) -> 0 | U19: =SUM(BaWü!V23:V27) -> 0 | W19: =IF(ISERROR(G19/D19),0,G19/D19) -> 0.2857142857 | X19: =IF(ISERROR((4*J19+3*I19+2*H19+G19-SUM(H19:J19))/D19),0,(4*J19+3*I19+2*H19+G19-SUM(H19:J19))/D19) -> 0.2857142857 | Y19: =W19+X19 -> 0.5714285714 | Z19: =IF(ISERROR((G19+L19+M19)/(D19+L19+M19+Q19)),0,(G19+L19+M19)/(D19+L19+M19+Q19)) -> 0.4444444444 | AA19: =Z19+X19 -> 0.7301587302 | AC19: =IF(ISERROR((S19+T19)/(U19+S19+T19)),0,(S19+T19)/(U19+S19+T19)) -> 0
A20: =NRW!A33 -> 7 | B20: =NRW!B33 -> Elstermeier, S | C20: =SUM(NRW!D33:D37) -> 14 | D20: =SUM(NRW!E33:E37) -> 7 | E20: =SUM(NRW!F20:F24) -> 4 | F20: =SUM(NRW!G33:G37) -> 2 | G20: =SUM(NRW!H33:H37) -> 1 | H20: =SUM(NRW!I33:I37) -> 0 | I20: =SUM(NRW!J33:J37) -> 0 | J20: =SUM(NRW!K33:K37) -> 0 | K20: =SUM(NRW!L33:L37) -> 4 | L20: =SUM(NRW!M33:M37) -> 6 | M20: =SUM(NRW!N33:N37) -> 0 | N20: =SUM(NRW!O33:O37) -> 1 | O20: =SUM(NRW!P33:P37) -> 0 | P20: =SUM(NRW!Q33:Q37) -> 1 | Q20: =SUM(NRW!R33:R37) -> 0 | S20: =SUM(NRW!T33:T37) -> 0 | T20: =SUM(NRW!U33:U37) -> 0 | U20: =SUM(NRW!V33:V37) -> 0 | W20: =IF(ISERROR(G20/D20),0,G20/D20) -> 0.1428571429 | X20: =IF(ISERROR((4*J20+3*I20+2*H20+G20-SUM(H20:J20))/D20),0,(4*J20+3*I20+2*H20+G20-SUM(H20:J20))/D20) -> 0.1428571429 | Y20: =W20+X20 -> 0.2857142857 | Z20: =IF(ISERROR((G20+L20+M20)/(D20+L20+M20+Q20)),0,(G20+L20+M20)/(D20+L20+M20+Q20)) -> 0.5384615385 | AA20: =Z20+X20 -> 0.6813186813 | AC20: =IF(ISERROR((S20+T20)/(U20+S20+T20)),0,(S20+T20)/(U20+S20+T20)) -> 0
A21: =NRW!A63 -> 13 | B21: =NRW!B63 -> Wahlen | C21: =SUM(NRW!D63:D67) -> 3 | D21: =SUM(NRW!E63:E67) -> 1 | E21: =SUM(NRW!F28:F32) -> 0 | F21: =SUM(NRW!G63:G67) -> 1 | G21: =SUM(NRW!H63:H67) -> 0 | H21: =SUM(NRW!I63:I67) -> 0 | I21: =SUM(NRW!J63:J67) -> 0 | J21: =SUM(NRW!K63:K67) -> 0 | K21: =SUM(NRW!L63:L67) -> 0 | L21: =SUM(NRW!M63:M67) -> 2 | M21: =SUM(NRW!N63:N67) -> 0 | N21: =SUM(NRW!O63:O67) -> 1 | O21: =SUM(NRW!P63:P67) -> 0 | P21: =SUM(NRW!Q63:Q67) -> 0 | Q21: =SUM(NRW!R63:R67) -> 0 | S21: =SUM(NRW!T63:T67) -> 0 | T21: =SUM(NRW!U63:U67) -> 0 | U21: =SUM(NRW!V63:V67) -> 0 | W21: =IF(ISERROR(G21/D21),0,G21/D21) -> 0 | X21: =IF(ISERROR((4*J21+3*I21+2*H21+G21-SUM(H21:J21))/D21),0,(4*J21+3*I21+2*H21+G21-SUM(H21:J21))/D21) -> 0 | Y21: =W21+X21 -> 0 | Z21: =IF(ISERROR((G21+L21+M21)/(D21+L21+M21+Q21)),0,(G21+L21+M21)/(D21+L21+M21+Q21)) -> 0.6666666667 | AA21: =Z21+X21 -> 0.6666666667 | AC21: =IF(ISERROR((S21+T21)/(U21+S21+T21)),0,(S21+T21)/(U21+S21+T21)) -> 0
A22: =NRW!A38 -> 8 | B22: =NRW!B38 -> Kessler | C22: =SUM(NRW!D38:D42) -> 5 | D22: =SUM(NRW!E38:E42) -> 4 | E22: =SUM(NRW!F22:F25) -> 4 | F22: =SUM(NRW!G38:G42) -> 2 | G22: =SUM(NRW!H38:H42) -> 1 | H22: =SUM(NRW!I38:I42) -> 0 | I22: =SUM(NRW!J38:J42) -> 0 | J22: =SUM(NRW!K38:K42) -> 0 | K22: =SUM(NRW!L38:L42) -> 2 | L22: =SUM(NRW!M38:M42) -> 1 | M22: =SUM(NRW!N38:N42) -> 0 | N22: =SUM(NRW!O38:O42) -> 0 | O22: =SUM(NRW!P38:P42) -> 0 | P22: =SUM(NRW!Q38:Q42) -> 0 | Q22: =SUM(NRW!R38:R42) -> 0 | S22: =SUM(NRW!T38:T42) -> 0 | T22: =SUM(NRW!U38:U42) -> 0 | U22: =SUM(NRW!V38:V42) -> 0 | W22: =IF(ISERROR(G22/D22),0,G22/D22) -> 0.25 | X22: =IF(ISERROR((4*J22+3*I22+2*H22+G22-SUM(H22:J22))/D22),0,(4*J22+3*I22+2*H22+G22-SUM(H22:J22))/D22) -> 0.25 | Y22: =W22+X22 -> 0.5 | Z22: =IF(ISERROR((G22+L22+M22)/(D22+L22+M22+Q22)),0,(G22+L22+M22)/(D22+L22+M22+Q22)) -> 0.4 | AA22: =Z22+X22 -> 0.65 | AC22: =IF(ISERROR((S22+T22)/(U22+S22+T22)),0,(S22+T22)/(U22+S22+T22)) -> 0
A23: =Bayern!A38 -> 48 | B23: =Bayern!B38 -> Eiting | C23: =SUM(Bayern!D38:D42) -> 5 | D23: =SUM(Bayern!E38:E42) -> 4 | E23: =SUM(NRW!F72:F75) -> 0 | F23: =SUM(Bayern!G38:G42) -> 0 | G23: =SUM(Bayern!H38:H42) -> 1 | H23: =SUM(Bayern!I38:I42) -> 0 | I23: =SUM(Bayern!J38:J42) -> 0 | J23: =SUM(Bayern!K38:K42) -> 0 | K23: =SUM(Bayern!L38:L42) -> 3 | L23: =SUM(Bayern!M38:M42) -> 1 | M23: =SUM(Bayern!N38:N42) -> 0 | N23: =SUM(Bayern!O38:O42) -> 0 | O23: =SUM(Bayern!P38:P42) -> 0 | P23: =SUM(Bayern!Q38:Q42) -> 0 | Q23: =SUM(Bayern!R38:R42) -> 0 | S23: =SUM(Bayern!T38:T42) -> 0 | T23: =SUM(Bayern!U38:U42) -> 0 | U23: =SUM(Bayern!V38:V42) -> 0 | W23: =IF(ISERROR(G23/D23),0,G23/D23) -> 0.25 | X23: =IF(ISERROR((4*J23+3*I23+2*H23+G23-SUM(H23:J23))/D23),0,(4*J23+3*I23+2*H23+G23-SUM(H23:J23))/D23) -> 0.25 | Y23: =W23+X23 -> 0.5 | Z23: =IF(ISERROR((G23+L23+M23)/(D23+L23+M23+Q23)),0,(G23+L23+M23)/(D23+L23+M23+Q23)) -> 0.4 | AA23: =Z23+X23 -> 0.65 | AC23: =IF(ISERROR((S23+T23)/(U23+S23+T23)),0,(S23+T23)/(U23+S23+T23)) -> 0
A24: =Bayern!A28 -> 46 | B24: =Bayern!B28 -> Kerscher | C24: =SUM(Bayern!D28:D32) -> 8 | D24: =SUM(Bayern!E28:E32) -> 5 | E24: =SUM(NRW!F69:F73) -> 0 | F24: =SUM(Bayern!G28:G32) -> 0 | G24: =SUM(Bayern!H28:H32) -> 1 | H24: =SUM(Bayern!I28:I32) -> 0 | I24: =SUM(Bayern!J28:J32) -> 0 | J24: =SUM(Bayern!K28:K32) -> 0 | K24: =SUM(Bayern!L28:L32) -> 1 | L24: =SUM(Bayern!M28:M32) -> 2 | M24: =SUM(Bayern!N28:N32) -> 0 | N24: =SUM(Bayern!O28:O32) -> 1 | O24: =SUM(Bayern!P28:P32) -> 0 | P24: =SUM(Bayern!Q28:Q32) -> 1 | Q24: =SUM(Bayern!R28:R32) -> 0 | S24: =SUM(Bayern!T28:T32) -> 0 | T24: =SUM(Bayern!U28:U32) -> 0 | U24: =SUM(Bayern!V28:V32) -> 0 | W24: =IF(ISERROR(G24/D24),0,G24/D24) -> 0.2 | X24: =IF(ISERROR((4*J24+3*I24+2*H24+G24-SUM(H24:J24))/D24),0,(4*J24+3*I24+2*H24+G24-SUM(H24:J24))/D24) -> 0.2 | Y24: =W24+X24 -> 0.4 | Z24: =IF(ISERROR((G24+L24+M24)/(D24+L24+M24+Q24)),0,(G24+L24+M24)/(D24+L24+M24+Q24)) -> 0.4285714286 | AA24: =Z24+X24 -> 0.6285714286 | AC24: =IF(ISERROR((S24+T24)/(U24+S24+T24)),0,(S24+T24)/(U24+S24+T24)) -> 0
A25: =BaWü!A3 -> 21 | B25: =BaWü!B3 -> Schmiedel | C25: =SUM(BaWü!D3:D7) -> 10 | D25: =SUM(BaWü!E3:E7) -> 6 | E25: =SUM(NRW!F34:F38) -> 4 | F25: =SUM(BaWü!G3:G7) -> 0 | G25: =SUM(BaWü!H3:H7) -> 1 | H25: =SUM(BaWü!I3:I7) -> 0 | I25: =SUM(BaWü!J3:J7) -> 0 | J25: =SUM(BaWü!K3:K7) -> 0 | K25: =SUM(BaWü!L3:L7) -> 2 | L25: =SUM(BaWü!M3:M7) -> 2 | M25: =SUM(BaWü!N3:N7) -> 1 | N25: =SUM(BaWü!O3:O7) -> 3 | O25: =SUM(BaWü!P3:P7) -> 1 | P25: =SUM(BaWü!Q3:Q7) -> 1 | Q25: =SUM(BaWü!R3:R7) -> 0 | S25: =SUM(BaWü!T3:T7) -> 0 | T25: =SUM(BaWü!U3:U7) -> 0 | U25: =SUM(BaWü!V3:V7) -> 0 | W25: =IF(ISERROR(G25/D25),0,G25/D25) -> 0.1666666667 | X25: =IF(ISERROR((4*J25+3*I25+2*H25+G25-SUM(H25:J25))/D25),0,(4*J25+3*I25+2*H25+G25-SUM(H25:J25))/D25) -> 0.1666666667 | Y25: =W25+X25 -> 0.3333333333 | Z25: =IF(ISERROR((G25+L25+M25)/(D25+L25+M25+Q25)),0,(G25+L25+M25)/(D25+L25+M25+Q25)) -> 0.4444444444 | AA25: =Z25+X25 -> 0.6111111111 | AC25: =IF(ISERROR((S25+T25)/(U25+S25+T25)),0,(S25+T25)/(U25+S25+T25)) -> 0
A26: =Bayern!A43 -> 49 | B26: =Bayern!B43 -> Salomon | C26: =SUM(Bayern!D43:D47) -> 12 | D26: =SUM(Bayern!E43:E47) -> 3 | E26: =SUM(NRW!F73:F77) -> 0 | F26: =SUM(Bayern!G43:G47) -> 5 | G26: =SUM(Bayern!H43:H47) -> 0 | H26: =SUM(Bayern!I43:I47) -> 0 | I26: =SUM(Bayern!J43:J47) -> 0 | J26: =SUM(Bayern!K43:K47) -> 0 | K26: =SUM(Bayern!L43:L47) -> 0 | L26: =SUM(Bayern!M43:M47) -> 5 | M26: =SUM(Bayern!N43:N47) -> 1 | N26: =SUM(Bayern!O43:O47) -> 0 | O26: =SUM(Bayern!P43:P47) -> 0 | P26: =SUM(Bayern!Q43:Q47) -> 2 | Q26: =SUM(Bayern!R43:R47) -> 1 | S26: =SUM(Bayern!T43:T47) -> 0 | T26: =SUM(Bayern!U43:U47) -> 0 | U26: =SUM(Bayern!V43:V47) -> 0 | W26: =IF(ISERROR(G26/D26),0,G26/D26) -> 0 | X26: =IF(ISERROR((4*J26+3*I26+2*H26+G26-SUM(H26:J26))/D26),0,(4*J26+3*I26+2*H26+G26-SUM(H26:J26))/D26) -> 0 | Y26: =W26+X26 -> 0 | Z26: =IF(ISERROR((G26+L26+M26)/(D26+L26+M26+Q26)),0,(G26+L26+M26)/(D26+L26+M26+Q26)) -> 0.6 | AA26: =Z26+X26 -> 0.6 | AC26: =IF(ISERROR((S26+T26)/(U26+S26+T26)),0,(S26+T26)/(U26+S26+T26)) -> 0
A27: =NRW!A58 -> 12 | B27: =NRW!B58 -> Hager | C27: =SUM(NRW!D58:D62) -> 5 | D27: =SUM(NRW!E58:E62) -> 2 | E27: =SUM(NRW!F27:F30) -> 0 | F27: =SUM(NRW!G58:G62) -> 0 | G27: =SUM(NRW!H58:H62) -> 0 | H27: =SUM(NRW!I58:I62) -> 0 | I27: =SUM(NRW!J58:J62) -> 0 | J27: =SUM(NRW!K58:K62) -> 0 | K27: =SUM(NRW!L58:L62) -> 1 | L27: =SUM(NRW!M58:M62) -> 3 | M27: =SUM(NRW!N58:N62) -> 0 | N27: =SUM(NRW!O58:O62) -> 1 | O27: =SUM(NRW!P58:P62) -> 0 | P27: =SUM(NRW!Q58:Q62) -> 0 | Q27: =SUM(NRW!R58:R62) -> 0 | S27: =SUM(NRW!T58:T62) -> 0 | T27: =SUM(NRW!U58:U62) -> 0 | U27: =SUM(NRW!V58:V62) -> 0 | W27: =IF(ISERROR(G27/D27),0,G27/D27) -> 0 | X27: =IF(ISERROR((4*J27+3*I27+2*H27+G27-SUM(H27:J27))/D27),0,(4*J27+3*I27+2*H27+G27-SUM(H27:J27))/D27) -> 0 | Y27: =W27+X27 -> 0 | Z27: =IF(ISERROR((G27+L27+M27)/(D27+L27+M27+Q27)),0,(G27+L27+M27)/(D27+L27+M27+Q27)) -> 0.6 | AA27: =Z27+X27 -> 0.6 | AC27: =IF(ISERROR((S27+T27)/(U27+S27+T27)),0,(S27+T27)/(U27+S27+T27)) -> 0
A28: =NRW!A23 -> 5 | B28: =NRW!B23 -> Greven | C28: =SUM(NRW!D23:D27) -> 11 | D28: =SUM(NRW!E23:E27) -> 5 | E28: =SUM(NRW!F18:F22) -> 4 | F28: =SUM(NRW!G23:G27) -> 0 | G28: =SUM(NRW!H23:H27) -> 0 | H28: =SUM(NRW!I23:I27) -> 0 | I28: =SUM(NRW!J23:J27) -> 0 | J28: =SUM(NRW!K23:K27) -> 0 | K28: =SUM(NRW!L23:L27) -> 0 | L28: =SUM(NRW!M23:M27) -> 5 | M28: =SUM(NRW!N23:N27) -> 1 | N28: =SUM(NRW!O23:O27) -> 2 | O28: =SUM(NRW!P23:P27) -> 0 | P28: =SUM(NRW!Q23:Q27) -> 0 | Q28: =SUM(NRW!R23:R27) -> 0 | S28: =SUM(NRW!T23:T27) -> 0 | T28: =SUM(NRW!U23:U27) -> 0 | U28: =SUM(NRW!V23:V27) -> 0 | W28: =IF(ISERROR(G28/D28),0,G28/D28) -> 0 | X28: =IF(ISERROR((4*J28+3*I28+2*H28+G28-SUM(H28:J28))/D28),0,(4*J28+3*I28+2*H28+G28-SUM(H28:J28))/D28) -> 0 | Y28: =W28+X28 -> 0 | Z28: =IF(ISERROR((G28+L28+M28)/(D28+L28+M28+Q28)),0,(G28+L28+M28)/(D28+L28+M28+Q28)) -> 0.5454545455 | AA28: =Z28+X28 -> 0.5454545455 | AC28: =IF(ISERROR((S28+T28)/(U28+S28+T28)),0,(S28+T28)/(U28+S28+T28)) -> 0
A29: =Bayern!A48 -> 50 | B29: =Bayern!B48 -> Zimmermann | C29: =SUM(Bayern!D48:D52) -> 11 | D29: =SUM(Bayern!E48:E52) -> 8 | E29: =SUM(NRW!F55:F59) -> 1 | F29: =SUM(Bayern!G48:G52) -> 1 | G29: =SUM(Bayern!H48:H52) -> 1 | H29: =SUM(Bayern!I48:I52) -> 0 | I29: =SUM(Bayern!J48:J52) -> 0 | J29: =SUM(Bayern!K48:K52) -> 0 | K29: =SUM(Bayern!L48:L52) -> 2 | L29: =SUM(Bayern!M48:M52) -> 3 | M29: =SUM(Bayern!N48:N52) -> 0 | N29: =SUM(Bayern!O48:O52) -> 1 | O29: =SUM(Bayern!P48:P52) -> 0 | P29: =SUM(Bayern!Q48:Q52) -> 0 | Q29: =SUM(Bayern!R48:R52) -> 0 | S29: =SUM(Bayern!T48:T52) -> 0 | T29: =SUM(Bayern!U48:U52) -> 0 | U29: =SUM(Bayern!V48:V52) -> 0 | W29: =IF(ISERROR(G29/D29),0,G29/D29) -> 0.125 | X29: =IF(ISERROR((4*J29+3*I29+2*H29+G29-SUM(H29:J29))/D29),0,(4*J29+3*I29+2*H29+G29-SUM(H29:J29))/D29) -> 0.125 | Y29: =W29+X29 -> 0.25 | Z29: =IF(ISERROR((G29+L29+M29)/(D29+L29+M29+Q29)),0,(G29+L29+M29)/(D29+L29+M29+Q29)) -> 0.3636363636 | AA29: =Z29+X29 -> 0.4886363636 | AC29: =IF(ISERROR((S29+T29)/(U29+S29+T29)),0,(S29+T29)/(U29+S29+T29)) -> 0
A30: =NRW!A43 -> 9 | B30: =NRW!B43 -> Lucera | C30: =SUM(NRW!D43:D47) -> 7 | D30: =SUM(NRW!E43:E47) -> 4 | E30: =SUM(NRW!F23:F27) -> 4 | F30: =SUM(NRW!G43:G47) -> 0 | G30: =SUM(NRW!H43:H47) -> 0 | H30: =SUM(NRW!I43:I47) -> 0 | I30: =SUM(NRW!J43:J47) -> 0 | J30: =SUM(NRW!K43:K47) -> 0 | K30: =SUM(NRW!L43:L47) -> 0 | L30: =SUM(NRW!M43:M47) -> 2 | M30: =SUM(NRW!N43:N47) -> 1 | N30: =SUM(NRW!O43:O47) -> 2 | O30: =SUM(NRW!P43:P47) -> 0 | P30: =SUM(NRW!Q43:Q47) -> 0 | Q30: =SUM(NRW!R43:R47) -> 0 | S30: =SUM(NRW!T43:T47) -> 0 | T30: =SUM(NRW!U43:U47) -> 0 | U30: =SUM(NRW!V43:V47) -> 0 | W30: =IF(ISERROR(G30/D30),0,G30/D30) -> 0 | X30: =IF(ISERROR((4*J30+3*I30+2*H30+G30-SUM(H30:J30))/D30),0,(4*J30+3*I30+2*H30+G30-SUM(H30:J30))/D30) -> 0 | Y30: =W30+X30 -> 0 | Z30: =IF(ISERROR((G30+L30+M30)/(D30+L30+M30+Q30)),0,(G30+L30+M30)/(D30+L30+M30+Q30)) -> 0.4285714286 | AA30: =Z30+X30 -> 0.4285714286 | AC30: =IF(ISERROR((S30+T30)/(U30+S30+T30)),0,(S30+T30)/(U30+S30+T30)) -> 0
A31: =BaWü!A13 -> 23 | B31: =BaWü!B13 -> Weil | C31: =SUM(BaWü!D13:D17) -> 10 | D31: =SUM(BaWü!E13:E17) -> 8 | E31: =SUM(NRW!F47:F50) -> 3 | F31: =SUM(BaWü!G13:G17) -> 1 | G31: =SUM(BaWü!H13:H17) -> 1 | H31: =SUM(BaWü!I13:I17) -> 0 | I31: =SUM(BaWü!J13:J17) -> 0 | J31: =SUM(BaWü!K13:K17) -> 0 | K31: =SUM(BaWü!L13:L17) -> 0 | L31: =SUM(BaWü!M13:M17) -> 1 | M31: =SUM(BaWü!N13:N17) -> 1 | N31: =SUM(BaWü!O13:O17) -> 1 | O31: =SUM(BaWü!P13:P17) -> 0 | P31: =SUM(BaWü!Q13:Q17) -> 0 | Q31: =SUM(BaWü!R13:R17) -> 0 | S31: =SUM(BaWü!T13:T17) -> 0 | T31: =SUM(BaWü!U13:U17) -> 0 | U31: =SUM(BaWü!V13:V17) -> 0 | W31: =IF(ISERROR(G31/D31),0,G31/D31) -> 0.125 | X31: =IF(ISERROR((4*J31+3*I31+2*H31+G31-SUM(H31:J31))/D31),0,(4*J31+3*I31+2*H31+G31-SUM(H31:J31))/D31) -> 0.125 | Y31: =W31+X31 -> 0.25 | Z31: =IF(ISERROR((G31+L31+M31)/(D31+L31+M31+Q31)),0,(G31+L31+M31)/(D31+L31+M31+Q31)) -> 0.3 | AA31: =Z31+X31 -> 0.425 | AC31: =IF(ISERROR((S31+T31)/(U31+S31+T31)),0,(S31+T31)/(U31+S31+T31)) -> 0
A32: =NRW!A18 -> 4 | B32: =NRW!B18 -> Elstermeier, J | C32: =SUM(NRW!D18:D22) -> 10 | D32: =SUM(NRW!E18:E22) -> 6 | E32: =SUM(NRW!F17:F20) -> 4 | F32: =SUM(NRW!G18:G22) -> 0 | G32: =SUM(NRW!H18:H22) -> 0 | H32: =SUM(NRW!I18:I22) -> 0 | I32: =SUM(NRW!J18:J22) -> 0 | J32: =SUM(NRW!K18:K22) -> 0 | K32: =SUM(NRW!L18:L22) -> 2 | L32: =SUM(NRW!M18:M22) -> 4 | M32: =SUM(NRW!N18:N22) -> 0 | N32: =SUM(NRW!O18:O22) -> 3 | O32: =SUM(NRW!P18:P22) -> 0 | P32: =SUM(NRW!Q18:Q22) -> 0 | Q32: =SUM(NRW!R18:R22) -> 0 | S32: =SUM(NRW!T18:T22) -> 0 | T32: =SUM(NRW!U18:U22) -> 0 | U32: =SUM(NRW!V18:V22) -> 0 | W32: =IF(ISERROR(G32/D32),0,G32/D32) -> 0 | X32: =IF(ISERROR((4*J32+3*I32+2*H32+G32-SUM(H32:J32))/D32),0,(4*J32+3*I32+2*H32+G32-SUM(H32:J32))/D32) -> 0 | Y32: =W32+X32 -> 0 | Z32: =IF(ISERROR((G32+L32+M32)/(D32+L32+M32+Q32)),0,(G32+L32+M32)/(D32+L32+M32+Q32)) -> 0.4 | AA32: =Z32+X32 -> 0.4 | AC32: =IF(ISERROR((S32+T32)/(U32+S32+T32)),0,(S32+T32)/(U32+S32+T32)) -> 0
A33: =BaWü!A48 -> 30 | B33: =BaWü!B48 -> Raupricht | C33: =SUM(BaWü!D48:D52) -> 6 | D33: =SUM(BaWü!E48:E52) -> 6 | E33: =SUM(NRW!F35:F39) -> 2 | F33: =SUM(BaWü!G48:G52) -> 0 | G33: =SUM(BaWü!H48:H52) -> 1 | H33: =SUM(BaWü!I48:I52) -> 0 | I33: =SUM(BaWü!J48:J52) -> 0 | J33: =SUM(BaWü!K48:K52) -> 0 | K33: =SUM(BaWü!L48:L52) -> 1 | L33: =SUM(BaWü!M48:M52) -> 0 | M33: =SUM(BaWü!N48:N52) -> 0 | N33: =SUM(BaWü!O48:O52) -> 1 | O33: =SUM(BaWü!P48:P52) -> 0 | P33: =SUM(BaWü!Q48:Q52) -> 0 | Q33: =SUM(BaWü!R48:R52) -> 0 | S33: =SUM(BaWü!T48:T52) -> 0 | T33: =SUM(BaWü!U48:U52) -> 0 | U33: =SUM(BaWü!V48:V52) -> 0 | W33: =IF(ISERROR(G33/D33),0,G33/D33) -> 0.1666666667 | X33: =IF(ISERROR((4*J33+3*I33+2*H33+G33-SUM(H33:J33))/D33),0,(4*J33+3*I33+2*H33+G33-SUM(H33:J33))/D33) -> 0.1666666667 | Y33: =W33+X33 -> 0.3333333333 | Z33: =IF(ISERROR((G33+L33+M33)/(D33+L33+M33+Q33)),0,(G33+L33+M33)/(D33+L33+M33+Q33)) -> 0.1666666667 | AA33: =Z33+X33 -> 0.3333333333 | AC33: =IF(ISERROR((S33+T33)/(U33+S33+T33)),0,(S33+T33)/(U33+S33+T33)) -> 0
A34: =Bayern!A53 -> 51 | B34: =Bayern!B53 -> Discherl | C34: =SUM(Bayern!D53:D57) -> 3 | D34: =SUM(Bayern!E53:E57) -> 2 | E34: =SUM(NRW!F57:F60) -> 1 | F34: =SUM(Bayern!G53:G57) -> 1 | G34: =SUM(Bayern!H53:H57) -> 0 | H34: =SUM(Bayern!I53:I57) -> 0 | I34: =SUM(Bayern!J53:J57) -> 0 | J34: =SUM(Bayern!K53:K57) -> 0 | K34: =SUM(Bayern!L53:L57) -> 1 | L34: =SUM(Bayern!M53:M57) -> 1 | M34: =SUM(Bayern!N53:N57) -> 0 | N34: =SUM(Bayern!O53:O57) -> 0 | O34: =SUM(Bayern!P53:P57) -> 0 | P34: =SUM(Bayern!Q53:Q57) -> 0 | Q34: =SUM(Bayern!R53:R57) -> 0 | S34: =SUM(Bayern!T53:T57) -> 0 | T34: =SUM(Bayern!U53:U57) -> 0 | U34: =SUM(Bayern!V53:V57) -> 0 | W34: =IF(ISERROR(G34/D34),0,G34/D34) -> 0 | X34: =IF(ISERROR((4*J34+3*I34+2*H34+G34-SUM(H34:J34))/D34),0,(4*J34+3*I34+2*H34+G34-SUM(H34:J34))/D34) -> 0 | Y34: =W34+X34 -> 0 | Z34: =IF(ISERROR((G34+L34+M34)/(D34+L34+M34+Q34)),0,(G34+L34+M34)/(D34+L34+M34+Q34)) -> 0.3333333333 | AA34: =Z34+X34 -> 0.3333333333 | AC34: =IF(ISERROR((S34+T34)/(U34+S34+T34)),0,(S34+T34)/(U34+S34+T34)) -> 0
A35: =Bayern!A13 -> 43 | B35: =Bayern!B13 -> Schnirch | C35: =SUM(Bayern!D13:D17) -> 4 | D35: =SUM(Bayern!E13:E17) -> 3 | E35: =SUM(NRW!F65:F69) -> 0 | F35: =SUM(Bayern!G13:G17) -> 0 | G35: =SUM(Bayern!H13:H17) -> 0 | H35: =SUM(Bayern!I13:I17) -> 0 | I35: =SUM(Bayern!J13:J17) -> 0 | J35: =SUM(Bayern!K13:K17) -> 0 | K35: =SUM(Bayern!L13:L17) -> 1 | L35: =SUM(Bayern!M13:M17) -> 1 | M35: =SUM(Bayern!N13:N17) -> 0 | N35: =SUM(Bayern!O13:O17) -> 0 | O35: =SUM(Bayern!P13:P17) -> 0 | P35: =SUM(Bayern!Q13:Q17) -> 0 | Q35: =SUM(Bayern!R13:R17) -> 0 | S35: =SUM(Bayern!T13:T17) -> 0 | T35: =SUM(Bayern!U13:U17) -> 0 | U35: =SUM(Bayern!V13:V17) -> 0 | W35: =IF(ISERROR(G35/D35),0,G35/D35) -> 0 | X35: =IF(ISERROR((4*J35+3*I35+2*H35+G35-SUM(H35:J35))/D35),0,(4*J35+3*I35+2*H35+G35-SUM(H35:J35))/D35) -> 0 | Y35: =W35+X35 -> 0 | Z35: =IF(ISERROR((G35+L35+M35)/(D35+L35+M35+Q35)),0,(G35+L35+M35)/(D35+L35+M35+Q35)) -> 0.25 | AA35: =Z35+X35 -> 0.25 | AC35: =IF(ISERROR((S35+T35)/(U35+S35+T35)),0,(S35+T35)/(U35+S35+T35)) -> 0
A36: =BaWü!A43 -> 29 | B36: =BaWü!B43 -> Gröschel | C36: =SUM(BaWü!D43:D47) -> 4 | D36: =SUM(BaWü!E43:E47) -> 3 | E36: =SUM(NRW!F53:F57) -> 1 | F36: =SUM(BaWü!G43:G47) -> 0 | G36: =SUM(BaWü!H43:H47) -> 0 | H36: =SUM(BaWü!I43:I47) -> 0 | I36: =SUM(BaWü!J43:J47) -> 0 | J36: =SUM(BaWü!K43:K47) -> 0 | K36: =SUM(BaWü!L43:L47) -> 0 | L36: =SUM(BaWü!M43:M47) -> 1 | M36: =SUM(BaWü!N43:N47) -> 0 | N36: =SUM(BaWü!O43:O47) -> 0 | O36: =SUM(BaWü!P43:P47) -> 0 | P36: =SUM(BaWü!Q43:Q47) -> 0 | Q36: =SUM(BaWü!R43:R47) -> 0 | S36: =SUM(BaWü!T43:T47) -> 0 | T36: =SUM(BaWü!U43:U47) -> 0 | U36: =SUM(BaWü!V43:V47) -> 0 | W36: =IF(ISERROR(G36/D36),0,G36/D36) -> 0 | X36: =IF(ISERROR((4*J36+3*I36+2*H36+G36-SUM(H36:J36))/D36),0,(4*J36+3*I36+2*H36+G36-SUM(H36:J36))/D36) -> 0 | Y36: =W36+X36 -> 0 | Z36: =IF(ISERROR((G36+L36+M36)/(D36+L36+M36+Q36)),0,(G36+L36+M36)/(D36+L36+M36+Q36)) -> 0.25 | AA36: =Z36+X36 -> 0.25 | AC36: =IF(ISERROR((S36+T36)/(U36+S36+T36)),0,(S36+T36)/(U36+S36+T36)) -> 0
A37: =NRW!A28 -> 6 | B37: =NRW!B28 -> Lankhorst | C37: =SUM(NRW!D28:D32) -> 12 | D37: =SUM(NRW!E28:E32) -> 8 | E37: =SUM(NRW!F19:F23) -> 0 | F37: =SUM(NRW!G28:G32) -> 2 | G37: =SUM(NRW!H28:H32) -> 0 | H37: =SUM(NRW!I28:I32) -> 0 | I37: =SUM(NRW!J28:J32) -> 0 | J37: =SUM(NRW!K28:K32) -> 0 | K37: =SUM(NRW!L28:L32) -> 3 | L37: =SUM(NRW!M28:M32) -> 1 | M37: =SUM(NRW!N28:N32) -> 1 | N37: =SUM(NRW!O28:O32) -> 0 | O37: =SUM(NRW!P28:P32) -> 0 | P37: =SUM(NRW!Q28:Q32) -> 1 | Q37: =SUM(NRW!R28:R32) -> 1 | S37: =SUM(NRW!T28:T32) -> 0 | T37: =SUM(NRW!U28:U32) -> 0 | U37: =SUM(NRW!V28:V32) -> 0 | W37: =IF(ISERROR(G37/D37),0,G37/D37) -> 0 | X37: =IF(ISERROR((4*J37+3*I37+2*H37+G37-SUM(H37:J37))/D37),0,(4*J37+3*I37+2*H37+G37-SUM(H37:J37))/D37) -> 0 | Y37: =W37+X37 -> 0 | Z37: =IF(ISERROR((G37+L37+M37)/(D37+L37+M37+Q37)),0,(G37+L37+M37)/(D37+L37+M37+Q37)) -> 0.1818181818 | AA37: =Z37+X37 -> 0.1818181818 | AC37: =IF(ISERROR((S37+T37)/(U37+S37+T37)),0,(S37+T37)/(U37+S37+T37)) -> 0
A38: =NRW!A48 -> 10 | B38: =NRW!B48 -> Brockmeier | C38: =SUM(NRW!D48:D52) -> 11 | D38: =SUM(NRW!E48:E52) -> 9 | E38: =SUM(NRW!F24:F28) -> 4 | F38: =SUM(NRW!G48:G52) -> 1 | G38: =SUM(NRW!H48:H52) -> 0 | H38: =SUM(NRW!I48:I52) -> 0 | I38: =SUM(NRW!J48:J52) -> 0 | J38: =SUM(NRW!K48:K52) -> 0 | K38: =SUM(NRW!L48:L52) -> 0 | L38: =SUM(NRW!M48:M52) -> 2 | M38: =SUM(NRW!N48:N52) -> 0 | N38: =SUM(NRW!O48:O52) -> 4 | O38: =SUM(NRW!P48:P52) -> 0 | P38: =SUM(NRW!Q48:Q52) -> 0 | Q38: =SUM(NRW!R48:R52) -> 0 | S38: =SUM(NRW!T48:T52) -> 0 | T38: =SUM(NRW!U48:U52) -> 0 | U38: =SUM(NRW!V48:V52) -> 0 | W38: =IF(ISERROR(G38/D38),0,G38/D38) -> 0 | X38: =IF(ISERROR((4*J38+3*I38+2*H38+G38-SUM(H38:J38))/D38),0,(4*J38+3*I38+2*H38+G38-SUM(H38:J38))/D38) -> 0 | Y38: =W38+X38 -> 0 | Z38: =IF(ISERROR((G38+L38+M38)/(D38+L38+M38+Q38)),0,(G38+L38+M38)/(D38+L38+M38+Q38)) -> 0.1818181818 | AA38: =Z38+X38 -> 0.1818181818 | AC38: =IF(ISERROR((S38+T38)/(U38+S38+T38)),0,(S38+T38)/(U38+S38+T38)) -> 0
A39: =BaWü!A28 -> 26 | B39: =BaWü!B28 -> Kortenkamp | C39: =SUM(BaWü!D28:D32) -> 8 | D39: =SUM(BaWü!E28:E32) -> 7 | E39: =SUM(BaWü!F28:F32) -> 0 | F39: =SUM(BaWü!G28:G32) -> 1 | G39: =SUM(BaWü!H28:H32) -> 0 | H39: =SUM(BaWü!I28:I32) -> 0 | I39: =SUM(BaWü!J28:J32) -> 0 | J39: =SUM(BaWü!K28:K32) -> 0 | K39: =SUM(BaWü!L28:L32) -> 4 | L39: =SUM(BaWü!M28:M32) -> 1 | M39: =SUM(BaWü!N28:N32) -> 0 | N39: =SUM(BaWü!O28:O32) -> 0 | O39: =SUM(BaWü!P28:P32) -> 0 | P39: =SUM(BaWü!Q28:Q32) -> 0 | Q39: =SUM(BaWü!R28:R32) -> 0 | S39: =SUM(BaWü!T28:T32) -> 0 | T39: =SUM(BaWü!U28:U32) -> 0 | U39: =SUM(BaWü!V28:V32) -> 0 | W39: =IF(ISERROR(G39/D39),0,G39/D39) -> 0 | X39: =IF(ISERROR((4*J39+3*I39+2*H39+G39-SUM(H39:J39))/D39),0,(4*J39+3*I39+2*H39+G39-SUM(H39:J39))/D39) -> 0 | Y39: =W39+X39 -> 0 | Z39: =IF(ISERROR((G39+L39+M39)/(D39+L39+M39+Q39)),0,(G39+L39+M39)/(D39+L39+M39+Q39)) -> 0.125 | AA39: =Z39+X39 -> 0.125 | AC39: =IF(ISERROR((S39+T39)/(U39+S39+T39)),0,(S39+T39)/(U39+S39+T39)) -> 0
A40: =BaWü!A58 -> 32 | B40: =BaWü!B58 -> Kutschera | C40: =SUM(BaWü!D58:D62) -> 1 | D40: =SUM(BaWü!E58:E62) -> 1 | E40: =SUM(NRW!F38:F42) -> 1 | F40: =SUM(BaWü!G58:G62) -> 0 | G40: =SUM(BaWü!H58:H62) -> 0 | H40: =SUM(BaWü!I58:I62) -> 0 | I40: =SUM(BaWü!J58:J62) -> 0 | J40: =SUM(BaWü!K58:K62) -> 0 | K40: =SUM(BaWü!L58:L62) -> 1 | L40: =SUM(BaWü!M58:M62) -> 0 | M40: =SUM(BaWü!N58:N62) -> 0 | N40: =SUM(BaWü!O58:O62) -> 0 | O40: =SUM(BaWü!P58:P62) -> 0 | P40: =SUM(BaWü!Q58:Q62) -> 0 | Q40: =SUM(BaWü!R58:R62) -> 0 | S40: =SUM(BaWü!T58:T62) -> 0 | T40: =SUM(BaWü!U58:U62) -> 0 | U40: =SUM(BaWü!V58:V62) -> 0 | W40: =IF(ISERROR(G40/D40),0,G40/D40) -> 0 | X40: =IF(ISERROR((4*J40+3*I40+2*H40+G40-SUM(H40:J40))/D40),0,(4*J40+3*I40+2*H40+G40-SUM(H40:J40))/D40) -> 0 | Y40: =W40+X40 -> 0 | Z40: =IF(ISERROR((G40+L40+M40)/(D40+L40+M40+Q40)),0,(G40+L40+M40)/(D40+L40+M40+Q40)) -> 0 | AA40: =Z40+X40 -> 0 | AC40: =IF(ISERROR((S40+T40)/(U40+S40+T40)),0,(S40+T40)/(U40+S40+T40)) -> 0
A41: =Bayern!A78 -> 56 | B41: =Bayern!B78 -> 0 | C41: =SUM(Bayern!D78:D82) -> 0 | D41: =SUM(Bayern!E78:E82) -> 0 | E41: =SUM(NRW!F62:F65) -> 1 | F41: =SUM(Bayern!G78:G82) -> 0 | G41: =SUM(Bayern!H78:H82) -> 0 | H41: =SUM(Bayern!I78:I82) -> 0 | I41: =SUM(Bayern!J78:J82) -> 0 | J41: =SUM(Bayern!K78:K82) -> 0 | K41: =SUM(Bayern!L78:L82) -> 0 | L41: =SUM(Bayern!M78:M82) -> 0 | M41: =SUM(Bayern!N78:N82) -> 0 | N41: =SUM(Bayern!O78:O82) -> 0 | O41: =SUM(Bayern!P78:P82) -> 0 | P41: =SUM(Bayern!Q78:Q82) -> 0 | Q41: =SUM(Bayern!R78:R82) -> 0 | S41: =SUM(Bayern!T78:T82) -> 0 | T41: =SUM(Bayern!U78:U82) -> 0 | U41: =SUM(Bayern!V78:V82) -> 0 | W41: =IF(ISERROR(G41/D41),0,G41/D41) -> 0 | X41: =IF(ISERROR((4*J41+3*I41+2*H41+G41-SUM(H41:J41))/D41),0,(4*J41+3*I41+2*H41+G41-SUM(H41:J41))/D41) -> 0 | Y41: =W41+X41 -> 0 | Z41: =IF(ISERROR((G41+L41+M41)/(D41+L41+M41+Q41)),0,(G41+L41+M41)/(D41+L41+M41+Q41)) -> 0 | AA41: =Z41+X41 -> 0 | AC41: =IF(ISERROR((S41+T41)/(U41+S41+T41)),0,(S41+T41)/(U41+S41+T41)) -> 0
A42: =BaWü!A53 -> 31 | B42: =BaWü!B53 -> Bär | C42: =SUM(BaWü!D53:D57) -> 0 | D42: =SUM(BaWü!E53:E57) -> 0 | E42: =SUM(NRW!F37:F40) -> 1 | F42: =SUM(BaWü!G53:G57) -> 0 | G42: =SUM(BaWü!H53:H57) -> 0 | H42: =SUM(BaWü!I53:I57) -> 0 | I42: =SUM(BaWü!J53:J57) -> 0 | J42: =SUM(BaWü!K53:K57) -> 0 | K42: =SUM(BaWü!L53:L57) -> 0 | L42: =SUM(BaWü!M53:M57) -> 0 | M42: =SUM(BaWü!N53:N57) -> 0 | N42: =SUM(BaWü!O53:O57) -> 0 | O42: =SUM(BaWü!P53:P57) -> 0 | P42: =SUM(BaWü!Q53:Q57) -> 0 | Q42: =SUM(BaWü!R53:R57) -> 0 | S42: =SUM(BaWü!T53:T57) -> 0 | T42: =SUM(BaWü!U53:U57) -> 0 | U42: =SUM(BaWü!V53:V57) -> 0 | W42: =IF(ISERROR(G42/D42),0,G42/D42) -> 0 | X42: =IF(ISERROR((4*J42+3*I42+2*H42+G42-SUM(H42:J42))/D42),0,(4*J42+3*I42+2*H42+G42-SUM(H42:J42))/D42) -> 0 | Y42: =W42+X42 -> 0 | Z42: =IF(ISERROR((G42+L42+M42)/(D42+L42+M42+Q42)),0,(G42+L42+M42)/(D42+L42+M42+Q42)) -> 0 | AA42: =Z42+X42 -> 0 | AC42: =IF(ISERROR((S42+T42)/(U42+S42+T42)),0,(S42+T42)/(U42+S42+T42)) -> 0
A43: =BaWü!A68 -> 34 | B43: =BaWü!B68 -> 0 | C43: =SUM(BaWü!D68:D72) -> 0 | D43: =SUM(BaWü!E68:E72) -> 0 | E43: =SUM(NRW!F40:F44) -> 1 | F43: =SUM(BaWü!G68:G72) -> 0 | G43: =SUM(BaWü!H68:H72) -> 0 | H43: =SUM(BaWü!I68:I72) -> 0 | I43: =SUM(BaWü!J68:J72) -> 0 | J43: =SUM(BaWü!K68:K72) -> 0 | K43: =SUM(BaWü!L68:L72) -> 0 | L43: =SUM(BaWü!M68:M72) -> 0 | M43: =SUM(BaWü!N68:N72) -> 0 | N43: =SUM(BaWü!O68:O72) -> 0 | O43: =SUM(BaWü!P68:P72) -> 0 | P43: =SUM(BaWü!Q68:Q72) -> 0 | Q43: =SUM(BaWü!R68:R72) -> 0 | S43: =SUM(BaWü!T68:T72) -> 0 | T43: =SUM(BaWü!U68:U72) -> 0 | U43: =SUM(BaWü!V68:V72) -> 0 | W43: =IF(ISERROR(G43/D43),0,G43/D43) -> 0 | X43: =IF(ISERROR((4*J43+3*I43+2*H43+G43-SUM(H43:J43))/D43),0,(4*J43+3*I43+2*H43+G43-SUM(H43:J43))/D43) -> 0 | Y43: =W43+X43 -> 0 | Z43: =IF(ISERROR((G43+L43+M43)/(D43+L43+M43+Q43)),0,(G43+L43+M43)/(D43+L43+M43+Q43)) -> 0 | AA43: =Z43+X43 -> 0 | AC43: =IF(ISERROR((S43+T43)/(U43+S43+T43)),0,(S43+T43)/(U43+S43+T43)) -> 0
A44: =NRW!A68 -> 14 | B44: =NRW!B68 -> 0 | C44: =SUM(NRW!D68:D72) -> 0 | D44: =SUM(NRW!E68:E72) -> 0 | E44: =SUM(NRW!F29:F33) -> 0 | F44: =SUM(NRW!G68:G72) -> 0 | G44: =SUM(NRW!H68:H72) -> 0 | H44: =SUM(NRW!I68:I72) -> 0 | I44: =SUM(NRW!J68:J72) -> 0 | J44: =SUM(NRW!K68:K72) -> 0 | K44: =SUM(NRW!L68:L72) -> 0 | L44: =SUM(NRW!M68:M72) -> 0 | M44: =SUM(NRW!N68:N72) -> 0 | N44: =SUM(NRW!O68:O72) -> 0 | O44: =SUM(NRW!P68:P72) -> 0 | P44: =SUM(NRW!Q68:Q72) -> 0 | Q44: =SUM(NRW!R68:R72) -> 0 | S44: =SUM(NRW!T68:T72) -> 0 | T44: =SUM(NRW!U68:U72) -> 0 | U44: =SUM(NRW!V68:V72) -> 0 | W44: =IF(ISERROR(G44/D44),0,G44/D44) -> 0 | X44: =IF(ISERROR((4*J44+3*I44+2*H44+G44-SUM(H44:J44))/D44),0,(4*J44+3*I44+2*H44+G44-SUM(H44:J44))/D44) -> 0 | Y44: =W44+X44 -> 0 | Z44: =IF(ISERROR((G44+L44+M44)/(D44+L44+M44+Q44)),0,(G44+L44+M44)/(D44+L44+M44+Q44)) -> 0 | AA44: =Z44+X44 -> 0 | AC44: =IF(ISERROR((S44+T44)/(U44+S44+T44)),0,(S44+T44)/(U44+S44+T44)) -> 0
A45: =Bayern!A73 -> 55 | B45: =Bayern!B73 -> 0 | C45: =SUM(Bayern!D73:D77) -> 0 | D45: =SUM(Bayern!E73:E77) -> 0 | E45: =SUM(Bayern!F73:F77) -> 0 | F45: =SUM(Bayern!G73:G77) -> 0 | G45: =SUM(Bayern!H73:H77) -> 0 | H45: =SUM(Bayern!I73:I77) -> 0 | I45: =SUM(Bayern!J73:J77) -> 0 | J45: =SUM(Bayern!K73:K77) -> 0 | K45: =SUM(Bayern!L73:L77) -> 0 | L45: =SUM(Bayern!M73:M77) -> 0 | M45: =SUM(Bayern!N73:N77) -> 0 | N45: =SUM(Bayern!O73:O77) -> 0 | O45: =SUM(Bayern!P73:P77) -> 0 | P45: =SUM(Bayern!Q73:Q77) -> 0 | Q45: =SUM(Bayern!R73:R77) -> 0 | S45: =SUM(Bayern!T73:T77) -> 0 | T45: =SUM(Bayern!U73:U77) -> 0 | U45: =SUM(Bayern!V73:V77) -> 0 | W45: =IF(ISERROR(G45/D45),0,G45/D45) -> 0 | X45: =IF(ISERROR((4*J45+3*I45+2*H45+G45-SUM(H45:J45))/D45),0,(4*J45+3*I45+2*H45+G45-SUM(H45:J45))/D45) -> 0 | Y45: =W45+X45 -> 0 | Z45: =IF(ISERROR((G45+L45+M45)/(D45+L45+M45+Q45)),0,(G45+L45+M45)/(D45+L45+M45+Q45)) -> 0 | AA45: =Z45+X45 -> 0 | AC45: =IF(ISERROR((S45+T45)/(U45+S45+T45)),0,(S45+T45)/(U45+S45+T45)) -> 0
A46: =NRW!A53 -> 11 | B46: =NRW!B53 -> Prellwitz | C46: =SUM(NRW!D53:D57) -> 0 | D46: =SUM(NRW!E53:E57) -> 0 | E46: =SUM(NRW!F25:F29) -> 0 | F46: =SUM(NRW!G53:G57) -> 0 | G46: =SUM(NRW!H53:H57) -> 0 | H46: =SUM(NRW!I53:I57) -> 0 | I46: =SUM(NRW!J53:J57) -> 0 | J46: =SUM(NRW!K53:K57) -> 0 | K46: =SUM(NRW!L53:L57) -> 0 | L46: =SUM(NRW!M53:M57) -> 0 | M46: =SUM(NRW!N53:N57) -> 0 | N46: =SUM(NRW!O53:O57) -> 0 | O46: =SUM(NRW!P53:P57) -> 0 | P46: =SUM(NRW!Q53:Q57) -> 0 | Q46: =SUM(NRW!R53:R57) -> 0 | S46: =SUM(NRW!T53:T57) -> 0 | T46: =SUM(NRW!U53:U57) -> 0 | U46: =SUM(NRW!V53:V57) -> 0 | W46: =IF(ISERROR(G46/D46),0,G46/D46) -> 0 | X46: =IF(ISERROR((4*J46+3*I46+2*H46+G46-SUM(H46:J46))/D46),0,(4*J46+3*I46+2*H46+G46-SUM(H46:J46))/D46) -> 0 | Y46: =W46+X46 -> 0 | Z46: =IF(ISERROR((G46+L46+M46)/(D46+L46+M46+Q46)),0,(G46+L46+M46)/(D46+L46+M46+Q46)) -> 0 | AA46: =Z46+X46 -> 0 | AC46: =IF(ISERROR((S46+T46)/(U46+S46+T46)),0,(S46+T46)/(U46+S46+T46)) -> 0
A47: =NRW!A73 -> 15 | B47: =NRW!B73 -> 0 | C47: =SUM(NRW!D73:D77) -> 0 | D47: =SUM(NRW!E73:E77) -> 0 | E47: =SUM(NRW!F30:F34) -> 3 | F47: =SUM(NRW!G73:G77) -> 0 | G47: =SUM(NRW!H73:H77) -> 0 | H47: =SUM(NRW!I73:I77) -> 0 | I47: =SUM(NRW!J73:J77) -> 0 | J47: =SUM(NRW!K73:K77) -> 0 | K47: =SUM(NRW!L73:L77) -> 0 | L47: =SUM(NRW!M73:M77) -> 0 | M47: =SUM(NRW!N73:N77) -> 0 | N47: =SUM(NRW!O73:O77) -> 0 | O47: =SUM(NRW!P73:P77) -> 0 | P47: =SUM(NRW!Q73:Q77) -> 0 | Q47: =SUM(NRW!R73:R77) -> 0 | S47: =SUM(NRW!T73:T77) -> 0 | T47: =SUM(NRW!U73:U77) -> 0 | U47: =SUM(NRW!V73:V77) -> 0 | W47: =IF(ISERROR(G47/D47),0,G47/D47) -> 0 | X47: =IF(ISERROR((4*J47+3*I47+2*H47+G47-SUM(H47:J47))/D47),0,(4*J47+3*I47+2*H47+G47-SUM(H47:J47))/D47) -> 0 | Y47: =W47+X47 -> 0 | Z47: =IF(ISERROR((G47+L47+M47)/(D47+L47+M47+Q47)),0,(G47+L47+M47)/(D47+L47+M47+Q47)) -> 0 | AA47: =Z47+X47 -> 0 | AC47: =IF(ISERROR((S47+T47)/(U47+S47+T47)),0,(S47+T47)/(U47+S47+T47)) -> 0
A48: =NRW!A78 -> 16 | B48: =NRW!B78 -> 0 | C48: =SUM(NRW!D78:D82) -> 0 | D48: =SUM(NRW!E78:E82) -> 0 | E48: =SUM(NRW!F32:F35) -> 4 | F48: =SUM(NRW!G78:G82) -> 0 | G48: =SUM(NRW!H78:H82) -> 0 | H48: =SUM(NRW!I78:I82) -> 0 | I48: =SUM(NRW!J78:J82) -> 0 | J48: =SUM(NRW!K78:K82) -> 0 | K48: =SUM(NRW!L78:L82) -> 0 | L48: =SUM(NRW!M78:M82) -> 0 | M48: =SUM(NRW!N78:N82) -> 0 | N48: =SUM(NRW!O78:O82) -> 0 | O48: =SUM(NRW!P78:P82) -> 0 | P48: =SUM(NRW!Q78:Q82) -> 0 | Q48: =SUM(NRW!R78:R82) -> 0 | S48: =SUM(NRW!T78:T82) -> 0 | T48: =SUM(NRW!U78:U82) -> 0 | U48: =SUM(NRW!V78:V82) -> 0 | W48: =IF(ISERROR(G48/D48),0,G48/D48) -> 0 | X48: =IF(ISERROR((4*J48+3*I48+2*H48+G48-SUM(H48:J48))/D48),0,(4*J48+3*I48+2*H48+G48-SUM(H48:J48))/D48) -> 0 | Y48: =W48+X48 -> 0 | Z48: =IF(ISERROR((G48+L48+M48)/(D48+L48+M48+Q48)),0,(G48+L48+M48)/(D48+L48+M48+Q48)) -> 0 | AA48: =Z48+X48 -> 0 | AC48: =IF(ISERROR((S48+T48)/(U48+S48+T48)),0,(S48+T48)/(U48+S48+T48)) -> 0
A49: =NRW!A83 -> 17 | B49: =NRW!B83 -> 0 | C49: =SUM(NRW!D83:D87) -> 0 | D49: =SUM(NRW!E83:E87) -> 0 | E49: =SUM(NRW!F33:F37) -> 4 | F49: =SUM(NRW!G83:G87) -> 0 | G49: =SUM(NRW!H83:H87) -> 0 | H49: =SUM(NRW!I83:I87) -> 0 | I49: =SUM(NRW!J83:J87) -> 0 | J49: =SUM(NRW!K83:K87) -> 0 | K49: =SUM(NRW!L83:L87) -> 0 | L49: =SUM(NRW!M83:M87) -> 0 | M49: =SUM(NRW!N83:N87) -> 0 | N49: =SUM(NRW!O83:O87) -> 0 | O49: =SUM(NRW!P83:P87) -> 0 | P49: =SUM(NRW!Q83:Q87) -> 0 | Q49: =SUM(NRW!R83:R87) -> 0 | S49: =SUM(NRW!T83:T87) -> 0 | T49: =SUM(NRW!U83:U87) -> 0 | U49: =SUM(NRW!V83:V87) -> 0 | W49: =IF(ISERROR(G49/D49),0,G49/D49) -> 0 | X49: =IF(ISERROR((4*J49+3*I49+2*H49+G49-SUM(H49:J49))/D49),0,(4*J49+3*I49+2*H49+G49-SUM(H49:J49))/D49) -> 0 | Y49: =W49+X49 -> 0 | Z49: =IF(ISERROR((G49+L49+M49)/(D49+L49+M49+Q49)),0,(G49+L49+M49)/(D49+L49+M49+Q49)) -> 0 | AA49: =Z49+X49 -> 0 | AC49: =IF(ISERROR((S49+T49)/(U49+S49+T49)),0,(S49+T49)/(U49+S49+T49)) -> 0
A50: =BaWü!A73 -> 35 | B50: =BaWü!B73 -> 0 | C50: =SUM(BaWü!D73:D77) -> 0 | D50: =SUM(BaWü!E73:E77) -> 0 | E50: =SUM(NRW!F42:F45) -> 1 | F50: =SUM(BaWü!G73:G77) -> 0 | G50: =SUM(BaWü!H73:H77) -> 0 | H50: =SUM(BaWü!I73:I77) -> 0 | I50: =SUM(BaWü!J73:J77) -> 0 | J50: =SUM(BaWü!K73:K77) -> 0 | K50: =SUM(BaWü!L73:L77) -> 0 | L50: =SUM(BaWü!M73:M77) -> 0 | M50: =SUM(BaWü!N73:N77) -> 0 | N50: =SUM(BaWü!O73:O77) -> 0 | O50: =SUM(BaWü!P73:P77) -> 0 | P50: =SUM(BaWü!Q73:Q77) -> 0 | Q50: =SUM(BaWü!R73:R77) -> 0 | S50: =SUM(BaWü!T73:T77) -> 0 | T50: =SUM(BaWü!U73:U77) -> 0 | U50: =SUM(BaWü!V73:V77) -> 0 | W50: =IF(ISERROR(G50/D50),0,G50/D50) -> 0 | X50: =IF(ISERROR((4*J50+3*I50+2*H50+G50-SUM(H50:J50))/D50),0,(4*J50+3*I50+2*H50+G50-SUM(H50:J50))/D50) -> 0 | Y50: =W50+X50 -> 0 | Z50: =IF(ISERROR((G50+L50+M50)/(D50+L50+M50+Q50)),0,(G50+L50+M50)/(D50+L50+M50+Q50)) -> 0 | AA50: =Z50+X50 -> 0 | AC50: =IF(ISERROR((S50+T50)/(U50+S50+T50)),0,(S50+T50)/(U50+S50+T50)) -> 0
A51: =BaWü!A78 -> 36 | B51: =BaWü!B78 -> 0 | C51: =SUM(BaWü!D78:D82) -> 0 | D51: =SUM(BaWü!E78:E82) -> 0 | E51: =SUM(NRW!F43:F47) -> 1 | F51: =SUM(BaWü!G78:G82) -> 0 | G51: =SUM(BaWü!H78:H82) -> 0 | H51: =SUM(BaWü!I78:I82) -> 0 | I51: =SUM(BaWü!J78:J82) -> 0 | J51: =SUM(BaWü!K78:K82) -> 0 | K51: =SUM(BaWü!L78:L82) -> 0 | L51: =SUM(BaWü!M78:M82) -> 0 | M51: =SUM(BaWü!N78:N82) -> 0 | N51: =SUM(BaWü!O78:O82) -> 0 | O51: =SUM(BaWü!P78:P82) -> 0 | P51: =SUM(BaWü!Q78:Q82) -> 0 | Q51: =SUM(BaWü!R78:R82) -> 0 | S51: =SUM(BaWü!T78:T82) -> 0 | T51: =SUM(BaWü!U78:U82) -> 0 | U51: =SUM(BaWü!V78:V82) -> 0 | W51: =IF(ISERROR(G51/D51),0,G51/D51) -> 0 | X51: =IF(ISERROR((4*J51+3*I51+2*H51+G51-SUM(H51:J51))/D51),0,(4*J51+3*I51+2*H51+G51-SUM(H51:J51))/D51) -> 0 | Y51: =W51+X51 -> 0 | Z51: =IF(ISERROR((G51+L51+M51)/(D51+L51+M51+Q51)),0,(G51+L51+M51)/(D51+L51+M51+Q51)) -> 0 | AA51: =Z51+X51 -> 0 | AC51: =IF(ISERROR((S51+T51)/(U51+S51+T51)),0,(S51+T51)/(U51+S51+T51)) -> 0
A52: =BaWü!A83 -> 37 | B52: =BaWü!B83 -> 0 | C52: =SUM(BaWü!D83:D87) -> 0 | D52: =SUM(BaWü!E83:E87) -> 0 | E52: =SUM(NRW!F44:F48) -> 2 | F52: =SUM(BaWü!G83:G87) -> 0 | G52: =SUM(BaWü!H83:H87) -> 0 | H52: =SUM(BaWü!I83:I87) -> 0 | I52: =SUM(BaWü!J83:J87) -> 0 | J52: =SUM(BaWü!K83:K87) -> 0 | K52: =SUM(BaWü!L83:L87) -> 0 | L52: =SUM(BaWü!M83:M87) -> 0 | M52: =SUM(BaWü!N83:N87) -> 0 | N52: =SUM(BaWü!O83:O87) -> 0 | O52: =SUM(BaWü!P83:P87) -> 0 | P52: =SUM(BaWü!Q83:Q87) -> 0 | Q52: =SUM(BaWü!R83:R87) -> 0 | S52: =SUM(BaWü!T83:T87) -> 0 | T52: =SUM(BaWü!U83:U87) -> 0 | U52: =SUM(BaWü!V83:V87) -> 0 | W52: =IF(ISERROR(G52/D52),0,G52/D52) -> 0 | X52: =IF(ISERROR((4*J52+3*I52+2*H52+G52-SUM(H52:J52))/D52),0,(4*J52+3*I52+2*H52+G52-SUM(H52:J52))/D52) -> 0 | Y52: =W52+X52 -> 0 | Z52: =IF(ISERROR((G52+L52+M52)/(D52+L52+M52+Q52)),0,(G52+L52+M52)/(D52+L52+M52+Q52)) -> 0 | AA52: =Z52+X52 -> 0 | AC52: =IF(ISERROR((S52+T52)/(U52+S52+T52)),0,(S52+T52)/(U52+S52+T52)) -> 0
A53: =Bayern!A83 -> 57 | B53: =Bayern!B83 -> 0 | C53: =SUM(Bayern!D83:D87) -> 0 | D53: =SUM(Bayern!E83:E87) -> 0 | E53: =SUM(NRW!F63:F67) -> 1 | F53: =SUM(Bayern!G83:G87) -> 0 | G53: =SUM(Bayern!H83:H87) -> 0 | H53: =SUM(Bayern!I83:I87) -> 0 | I53: =SUM(Bayern!J83:J87) -> 0 | J53: =SUM(Bayern!K83:K87) -> 0 | K53: =SUM(Bayern!L83:L87) -> 0 | L53: =SUM(Bayern!M83:M87) -> 0 | M53: =SUM(Bayern!N83:N87) -> 0 | N53: =SUM(Bayern!O83:O87) -> 0 | O53: =SUM(Bayern!P83:P87) -> 0 | P53: =SUM(Bayern!Q83:Q87) -> 0 | Q53: =SUM(Bayern!R83:R87) -> 0 | S53: =SUM(Bayern!T83:T87) -> 0 | T53: =SUM(Bayern!U83:U87) -> 0 | U53: =SUM(Bayern!V83:V87) -> 0 | W53: =IF(ISERROR(G53/D53),0,G53/D53) -> 0 | X53: =IF(ISERROR((4*J53+3*I53+2*H53+G53-SUM(H53:J53))/D53),0,(4*J53+3*I53+2*H53+G53-SUM(H53:J53))/D53) -> 0 | Y53: =W53+X53 -> 0 | Z53: =IF(ISERROR((G53+L53+M53)/(D53+L53+M53+Q53)),0,(G53+L53+M53)/(D53+L53+M53+Q53)) -> 0 | AA53: =Z53+X53 -> 0 | AC53: =IF(ISERROR((S53+T53)/(U53+S53+T53)),0,(S53+T53)/(U53+S53+T53)) -> 0

Sheet Pitching
A1: ID | B1: Spieler | C1: Gegner | D1: IP | E1: BF | F1: AB | G1: R | H1: ER | I1: H | J1: 2B | K1: 3B | L1: HR | M1: K | N1: BB | O1: HP | P1: SH | Q1: SF | R1: WP | S1: BK | T1: W | U1: L | V1: S
A2: 61 | B2: Weil | C2: HF | D2: 1 | E2: 8 | F2: 5 | G2: 3 | I2: 1 | M2: 1 | N2: 2 | O2: 1 | R2: 3 | U2: L
A7: 62 | B7: Fries | C7: HF | D7: 5 | E7: 23 | F7: 16 | G7: 7 | H7: 5 | I7: 3 | M7: 3 | N7: 5 | O7: 1 | R7: 1
C8: Bayern | D8: 2.7 | E8: 19 | F8: 10 | G8: 7 | I8: 3 | M8: 4 | N8: 8 | P8: 1 | R8: 3 | U8: L
C9: NRW | D9: 3.3 | E9: 26 | F9: 15 | G9: 12 | H9: 8 | I9: 4 | J9: 1 | K9: 1 | M9: 5 | N9: 10 | O9: 1 | R9: 10 | U9: L
A12: 63 | B12: Lankhorst | C12: HF | D12: 7 | E12: 30 | F12: 26 | G12: 5 | H12: 3 | I12: 3 | K12: 1 | M12: 9 | N12: 2 | O12: 1 | P12: 1 | T12: W
C13: BaWü | D13: 1 | E13: 10 | F13: 5 | G13: 3 | H13: 3 | I13: 2 | M13: 1 | N13: 5 | R13: 5
C14: Finale | D14: 7 | E14: 41 | F14: 26 | G14: 10 | H14: 2 | I14: 6 | J14: 2 | M14: 4 | N14: 13 | O14: 1 | P14: 1 | R14: 2 | T14: L
A17: 64 | B17: Grieschl | C17: Bayern | D17: 2.3 | E17: 14 | F17: 6 | G17: 3 | H17: 2 | M17: 1 | N17: 7 | R17: 2
C18: NRW | D18: 0.33 | E18: 5 | F18: 2 | G18: 4 | H18: 4 | I18: 1 | K18: 1 | N18: 3 | R18: 1
A22: 65 | B22: Ullmann | C22: BaWü | D22: 5 | E22: 24 | F22: 16 | G22: 3 | H22: 1 | I22: 3 | J22: 1 | M22: 6 | N22: 6 | O22: 1 | P22: 1 | R22: 2 | T22: W
C23: Finale | D23: 5 | E23: 23 | F23: 15 | I23: 1 | M23: 2 | N23: 6 | P23: 2 | R23: 1
A27: 66 | B27: Hager | C27: BaWü | D27: 3 | E27: 17 | F27: 12 | G27: 5 | H27: 4 | I27: 5 | N27: 3 | O27: 1 | P27: 1 | R27: 1 | T27: W
C28: Bayern | D28: 2.33 | E28: 16 | F28: 10 | G28: 5 | H28: 4 | I28: 4 | N28: 4 | O28: 1 | P28: 1
A32: 67 | B32: Rauprich | C32: NRW | E32: 4 | F32: 1 | G32: 2 | H32: 2 | I32: 1 | N32: 3
A37: 68 | B37: Parpart | C37: Bayern | D37: 2 | E37: 17 | F37: 7 | G37: 6 | H37: 4 | I37: 1 | M37: 1 | N37: 7 | P37: 3 | R37: 1 | U37: L
A42: 69 | B42: Stepniak | C42: NRW | D42: 5 | E42: 25 | F42: 16 | G42: 4 | H42: 4 | I42: 3 | M42: 6 | N42: 9 | R42: 4 | T42: W
C43: Finale | D43: 2 | E43: 9 | F43: 9 | G43: 2 | I43: 1 | M43: 3 | T43: W
A47: 70 | B47: Dirschl | C47: Finale | D47: 0 | E47: 4 | F47: 2 | G47: 4 | H47: 4 | I47: 2 | N47: 2 | R47: 2
A52: 71
A57: 72
A62: 73
A67: 74
A72: 75

Sheet Pitching Leaders
C1: Pitching | W1: Pitching Percentage
A2: ID | B2: Spieler | C2: IP | D2: BF | E2: AB | F2: R | G2: ER | H2: H | I2: 2B | J2: 3B | K2: HR | L2: K | M2: BB | N2: HP | O2: SH | P2: SF | Q2: WP | R2: BK | S2: W | T2: L | U2: S | W2: ERA | X2: K/IP | Y2: WHIP | Z2: OAVG
A3: =Pitching!A2 -> 61 | B3: =Pitching!B2 -> Weil | C3: =SUM(Pitching!D2:D6) -> 1 | D3: =SUM(Pitching!E2:E6) -> 8 | E3: =SUM(Pitching!F2:F6) -> 5 | F3: =SUM(Pitching!G2:G6) -> 3 | G3: =SUM(Pitching!H2:H6) -> 0 | H3: =SUM(Pitching!I2:I6) -> 1 | I3: =SUM(Pitching!J2:J6) -> 0 | J3: =SUM(Pitching!K2:K6) -> 0 | K3: =SUM(Pitching!L2:L6) -> 0 | L3: =SUM(Pitching!M2:M6) -> 1 | M3: =SUM(Pitching!N2:N6) -> 2 | N3: =SUM(Pitching!O2:O6) -> 1 | O3: =SUM(Pitching!P2:P6) -> 0 | P3: =SUM(Pitching!Q2:Q6) -> 0 | Q3: =SUM(Pitching!R2:R6) -> 3 | R3: =SUM(Pitching!S2:S6) -> 0 | S3: =COUNTA(Pitching!T2:T6) -> 0 | T3: =COUNTA(Pitching!U2:U6) -> 1 | U3: =COUNTA(Pitching!V2:V6) -> 0 | W3: =IF(ISERROR(7*G3/C3),"-",7*G3/C3) -> 0 | X3: =IF(ISERROR(L3/C3),0,L3/C3) -> 1 | Y3: =IF(ISERROR((M3+H3)/C3),0,(M3+H3)/C3) -> 3 | Z3: =IF(ISERROR(H3/E3),0,(H3/E3)) -> 0.2
A4: =Pitching!A22 -> 65 | B4: =Pitching!B22 -> Ullmann | C4: =SUM(Pitching!D22:D26) -> 10 | D4: =SUM(Pitching!E22:E26) -> 47 | E4: =SUM(Pitching!F22:F26) -> 31 | F4: =SUM(Pitching!G22:G26) -> 3 | G4: =SUM(Pitching!H22:H26) -> 1 | H4: =SUM(Pitching!I22:I26) -> 4 | I4: =SUM(Pitching!J22:J26) -> 1 | J4: =SUM(Pitching!K22:K26) -> 0 | K4: =SUM(Pitching!L22:L26) -> 0 | L4: =SUM(Pitching!M22:M26) -> 8 | M4: =SUM(Pitching!N22:N26) -> 12 | N4: =SUM(Pitching!O22:O26) -> 1 | O4: =SUM(Pitching!P22:P26) -> 3 | P4: =SUM(Pitching!Q22:Q26) -> 0 | Q4: =SUM(Pitching!R22:R26) -> 3 | R4: =SUM(Pitching!S22:S26) -> 0 | S4: =COUNTA(Pitching!T22:T26) -> 1 | T4: =COUNTA(Pitching!U22:U26) -> 0 | U4: =COUNTA(Pitching!V22:V26) -> 0 | W4: =IF(ISERROR(7*G4/C4),"-",7*G4/C4) -> 0.7 | X4: =IF(ISERROR(L4/C4),0,L4/C4) -> 0.8 | Y4: =IF(ISERROR((M4+H4)/C4),0,(M4+H4)/C4) -> 1.6 | Z4: =IF(ISERROR(H4/E4),0,(H4/E4)) -> 0.1290322581
A5: =Pitching!A12 -> 63 | B5: =Pitching!B12 -> Lankhorst | C5: =SUM(Pitching!D12:D16) -> 15 | D5: =SUM(Pitching!E12:E16) -> 81 | E5: =SUM(Pitching!F12:F16) -> 57 | F5: =SUM(Pitching!G12:G16) -> 18 | G5: =SUM(Pitching!H12:H16) -> 8 | H5: =SUM(Pitching!I12:I16) -> 11 | I5: =SUM(Pitching!J12:J16) -> 2 | J5: =SUM(Pitching!K12:K16) -> 1 | K5: =SUM(Pitching!L12:L16) -> 0 | L5: =SUM(Pitching!M12:M16) -> 14 | M5: =SUM(Pitching!N12:N16) -> 20 | N5: =SUM(Pitching!O12:O16) -> 2 | O5: =SUM(Pitching!P12:P16) -> 2 | P5: =SUM(Pitching!Q12:Q16) -> 0 | Q5: =SUM(Pitching!R12:R16) -> 7 | R5: =SUM(Pitching!S12:S16) -> 0 | S5: =COUNTA(Pitching!T12:T16) -> 2 | T5: =COUNTA(Pitching!U12:U16) -> 0 | U5: =COUNTA(Pitching!V12:V16) -> 0 | W5: =IF(ISERROR(7*G5/C5),"-",7*G5/C5) -> 3.733333333 | X5: =IF(ISERROR(L5/C5),0,L5/C5) -> 0.9333333333 | Y5: =IF(ISERROR((M5+H5)/C5),0,(M5+H5)/C5) -> 2.066666667 | Z5: =IF(ISERROR(H5/E5),0,(H5/E5)) -> 0.1929824561
A6: =Pitching!A42 -> 69 | B6: =Pitching!B42 -> Stepniak | C6: =SUM(Pitching!D42:D46) -> 7 | D6: =SUM(Pitching!E42:E46) -> 34 | E6: =SUM(Pitching!F42:F46) -> 25 | F6: =SUM(Pitching!G42:G46) -> 6 | G6: =SUM(Pitching!H42:H46) -> 4 | H6: =SUM(Pitching!I42:I46) -> 4 | I6: =SUM(Pitching!J42:J46) -> 0 | J6: =SUM(Pitching!K42:K46) -> 0 | K6: =SUM(Pitching!L42:L46) -> 0 | L6: =SUM(Pitching!M42:M46) -> 9 | M6: =SUM(Pitching!N42:N46) -> 9 | N6: =SUM(Pitching!O42:O46) -> 0 | O6: =SUM(Pitching!P42:P46) -> 0 | P6: =SUM(Pitching!Q42:Q46) -> 0 | Q6: =SUM(Pitching!R42:R46) -> 4 | R6: =SUM(Pitching!S42:S46) -> 0 | S6: =COUNTA(Pitching!T42:T46) -> 2 | T6: =COUNTA(Pitching!U42:U46) -> 0 | U6: =COUNTA(Pitching!V42:V46) -> 0 | W6: =IF(ISERROR(7*G6/C6),"-",7*G6/C6) -> 4 | X6: =IF(ISERROR(L6/C6),0,L6/C6) -> 1.285714286 | Y6: =IF(ISERROR((M6+H6)/C6),0,(M6+H6)/C6) -> 1.857142857 | Z6: =IF(ISERROR(H6/E6),0,(H6/E6)) -> 0.16
A7: =Pitching!A7 -> 62 | B7: =Pitching!B7 -> Fries | C7: =SUM(Pitching!D7:D11) -> 11 | D7: =SUM(Pitching!E7:E11) -> 68 | E7: =SUM(Pitching!F7:F11) -> 41 | F7: =SUM(Pitching!G7:G11) -> 26 | G7: =SUM(Pitching!H7:H11) -> 13 | H7: =SUM(Pitching!I7:I11) -> 10 | I7: =SUM(Pitching!J7:J11) -> 1 | J7: =SUM(Pitching!K7:K11) -> 1 | K7: =SUM(Pitching!L7:L11) -> 0 | L7: =SUM(Pitching!M7:M11) -> 12 | M7: =SUM(Pitching!N7:N11) -> 23 | N7: =SUM(Pitching!O7:O11) -> 2 | O7: =SUM(Pitching!P7:P11) -> 1 | P7: =SUM(Pitching!Q7:Q11) -> 0 | Q7: =SUM(Pitching!R7:R11) -> 14 | R7: =SUM(Pitching!S7:S11) -> 0 | S7: =COUNTA(Pitching!T7:T11) -> 0 | T7: =COUNTA(Pitching!U7:U11) -> 2 | U7: =COUNTA(Pitching!V7:V11) -> 0 | W7: =IF(ISERROR(7*G7/C7),"-",7*G7/C7) -> 8.272727273 | X7: =IF(ISERROR(L7/C7),0,L7/C7) -> 1.090909091 | Y7: =IF(ISERROR((M7+H7)/C7),0,(M7+H7)/C7) -> 3 | Z7: =IF(ISERROR(H7/E7),0,(H7/E7)) -> 0.243902439
A8: =Pitching!A27 -> 66 | B8: =Pitching!B27 -> Hager | C8: =SUM(Pitching!D27:D31) -> 5.33 | D8: =SUM(Pitching!E27:E31) -> 33 | E8: =SUM(Pitching!F27:F31) -> 22 | F8: =SUM(Pitching!G27:G31) -> 10 | G8: =SUM(Pitching!H27:H31) -> 8 | H8: =SUM(Pitching!I27:I31) -> 9 | I8: =SUM(Pitching!J27:J31) -> 0 | J8: =SUM(Pitching!K27:K31) -> 0 | K8: =SUM(Pitching!L27:L31) -> 0 | L8: =SUM(Pitching!M27:M31) -> 0 | M8: =SUM(Pitching!N27:N31) -> 7 | N8: =SUM(Pitching!O27:O31) -> 2 | O8: =SUM(Pitching!P27:P31) -> 2 | P8: =SUM(Pitching!Q27:Q31) -> 0 | Q8: =SUM(Pitching!R27:R31) -> 1 | R8: =SUM(Pitching!S27:S31) -> 0 | S8: =COUNTA(Pitching!T27:T31) -> 1 | T8: =COUNTA(Pitching!U27:U31) -> 0 | U8: =COUNTA(Pitching!V27:V31) -> 0 | W8: =IF(ISERROR(7*G8/C8),"-",7*G8/C8) -> 10.5065666 | X8: =IF(ISERROR(L8/C8),0,L8/C8) -> 0 | Y8: =IF(ISERROR((M8+H8)/C8),0,(M8+H8)/C8) -> 3.001876173 | Z8: =IF(ISERROR(H8/E8),0,(H8/E8)) -> 0.4090909091
A9: =Pitching!A17 -> 64 | B9: =Pitching!B17 -> Grieschl | C9: =SUM(Pitching!D17:D21) -> 2.63 | D9: =SUM(Pitching!E17:E21) -> 19 | E9: =SUM(Pitching!F17:F21) -> 8 | F9: =SUM(Pitching!G17:G21) -> 7 | G9: =SUM(Pitching!H17:H21) -> 6 | H9: =SUM(Pitching!I17:I21) -> 1 | I9: =SUM(Pitching!J17:J21) -> 0 | J9: =SUM(Pitching!K17:K21) -> 1 | K9: =SUM(Pitching!L17:L21) -> 0 | L9: =SUM(Pitching!M17:M21) -> 1 | M9: =SUM(Pitching!N17:N21) -> 10 | N9: =SUM(Pitching!O17:O21) -> 0 | O9: =SUM(Pitching!P17:P21) -> 0 | P9: =SUM(Pitching!Q17:Q21) -> 0 | Q9: =SUM(Pitching!R17:R21) -> 3 | R9: =SUM(Pitching!S17:S21) -> 0 | S9: =COUNTA(Pitching!T17:T21) -> 0 | T9: =COUNTA(Pitching!U17:U21) -> 0 | U9: =COUNTA(Pitching!V17:V21) -> 0 | W9: =IF(ISERROR(7*G9/C9),"-",7*G9/C9) -> 15.96958175 | X9: =IF(ISERROR(L9/C9),0,L9/C9) -> 0.3802281369 | Y9: =IF(ISERROR((M9+H9)/C9),0,(M9+H9)/C9) -> 4.182509506 | Z9: =IF(ISERROR(H9/E9),0,(H9/E9)) -> 0.125
A10: =Pitching!A37 -> 68 | B10: =Pitching!B37 -> Parpart | C10: =SUM(Pitching!D37:D41) -> 2 | D10: =SUM(Pitching!D37:D41) -> 2 | E10: =SUM(Pitching!E37:E41) -> 17 | F10: =SUM(Pitching!F37:F41) -> 7 | G10: =SUM(Pitching!G37:G41) -> 6 | H10: =SUM(Pitching!H37:H41) -> 4 | I10: =SUM(Pitching!I37:I41) -> 1 | J10: =SUM(Pitching!J37:J41) -> 0 | K10: =SUM(Pitching!K37:K41) -> 0 | L10: =SUM(Pitching!L37:L41) -> 0 | M10: =SUM(Pitching!M37:M41) -> 1 | N10: =SUM(Pitching!N37:N41) -> 7 | O10: =SUM(Pitching!O37:O41) -> 0 | P10: =SUM(Pitching!P37:P41) -> 3 | Q10: =SUM(Pitching!Q37:Q41) -> 0 | R10: =SUM(Pitching!R37:R41) -> 1 | S10: =COUNTA(Pitching!T37:T41) -> 0 | T10: =COUNTA(Pitching!U37:U41) -> 1 | U10: =COUNTA(Pitching!V37:V41) -> 0 | W10: =IF(ISERROR(7*G10/C10),"-",7*G10/C10) -> 21 | X10: =IF(ISERROR(L10/C10),0,L10/C10) -> 0 | Y10: =IF(ISERROR((M10+H10)/C10),0,(M10+H10)/C10) -> 2.5 | Z10: =IF(ISERROR(H10/E10),0,(H10/E10)) -> 0.2352941176
A11: =Pitching!A47 -> 70 | B11: =Pitching!B47 -> Dirschl | C11: =SUM(Pitching!D47:D51) -> 0 | D11: =SUM(Pitching!E47:E51) -> 4 | E11: =SUM(Pitching!F47:F51) -> 2 | F11: =SUM(Pitching!G47:G51) -> 4 | G11: =SUM(Pitching!H47:H51) -> 4 | H11: =SUM(Pitching!I47:I51) -> 2 | I11: =SUM(Pitching!J47:J51) -> 0 | J11: =SUM(Pitching!K47:K51) -> 0 | K11: =SUM(Pitching!L47:L51) -> 0 | L11: =SUM(Pitching!M47:M51) -> 0 | M11: =SUM(Pitching!N47:N51) -> 2 | N11: =SUM(Pitching!O47:O51) -> 0 | O11: =SUM(Pitching!P47:P51) -> 0 | P11: =SUM(Pitching!Q47:Q51) -> 0 | Q11: =SUM(Pitching!R47:R51) -> 2 | R11: =SUM(Pitching!S47:S51) -> 0 | S11: =COUNTA(Pitching!T47:T51) -> 0 | T11: =COUNTA(Pitching!U47:U51) -> 0 | U11: =COUNTA(Pitching!V47:V51) -> 0 | W11: =IF(ISERROR(7*G11/C11),"-",7*G11/C11) -> - | X11: =IF(ISERROR(L11/C11),0,L11/C11) -> 0 | Y11: =IF(ISERROR((M11+H11)/C11),0,(M11+H11)/C11) -> 0 | Z11: =IF(ISERROR(H11/E11),0,(H11/E11)) -> 1
A12: =Pitching!A32 -> 67 | B12: =Pitching!B32 -> Rauprich | C12: =SUM(Pitching!D32:D36) -> 0 | D12: =SUM(Pitching!E32:E36) -> 4 | E12: =SUM(Pitching!F32:F36) -> 1 | F12: =SUM(Pitching!G32:G36) -> 2 | G12: =SUM(Pitching!H32:H36) -> 2 | H12: =SUM(Pitching!I32:I36) -> 1 | I12: =SUM(Pitching!J32:J36) -> 0 | J12: =SUM(Pitching!K32:K36) -> 0 | K12: =SUM(Pitching!L32:L36) -> 0 | L12: =SUM(Pitching!M32:M36) -> 0 | M12: =SUM(Pitching!N32:N36) -> 3 | N12: =SUM(Pitching!O32:O36) -> 0 | O12: =SUM(Pitching!P32:P36) -> 0 | P12: =SUM(Pitching!Q32:Q36) -> 0 | Q12: =SUM(Pitching!R32:R36) -> 0 | R12: =SUM(Pitching!S32:S36) -> 0 | S12: =COUNTA(Pitching!T32:T36) -> 0 | T12: =COUNTA(Pitching!U32:U36) -> 0 | U12: =COUNTA(Pitching!V32:V36) -> 0 | W12: =IF(ISERROR(7*G12/C12),"-",7*G12/C12) -> - | X12: =IF(ISERROR(L12/C12),0,L12/C12) -> 0 | Y12: =IF(ISERROR((M12+H12)/C12),0,(M12+H12)/C12) -> 0 | Z12: =IF(ISERROR(H12/E12),0,(H12/E12)) -> 1
A13: =Pitching!A52 -> 71 | B13: =Pitching!B52 -> 0 | C13: =SUM(Pitching!D52:D56) -> 0 | D13: =SUM(Pitching!E52:E56) -> 0 | E13: =SUM(Pitching!F52:F56) -> 0 | F13: =SUM(Pitching!G52:G56) -> 0 | G13: =SUM(Pitching!H52:H56) -> 0 | H13: =SUM(Pitching!I52:I56) -> 0 | I13: =SUM(Pitching!J52:J56) -> 0 | J13: =SUM(Pitching!K52:K56) -> 0 | K13: =SUM(Pitching!L52:L56) -> 0 | L13: =SUM(Pitching!M52:M56) -> 0 | M13: =SUM(Pitching!N52:N56) -> 0 | N13: =SUM(Pitching!O52:O56) -> 0 | O13: =SUM(Pitching!P52:P56) -> 0 | P13: =SUM(Pitching!Q52:Q56) -> 0 | Q13: =SUM(Pitching!R52:R56) -> 0 | R13: =SUM(Pitching!S52:S56) -> 0 | S13: =COUNTA(Pitching!T52:T56) -> 0 | T13: =COUNTA(Pitching!U52:U56) -> 0 | U13: =COUNTA(Pitching!V52:V56) -> 0 | W13: =IF(ISERROR(7*G13/C13),"-",7*G13/C13) -> - | X13: =IF(ISERROR(L13/C13),0,L13/C13) -> 0 | Y13: =IF(ISERROR((M13+H13)/C13),0,(M13+H13)/C13) -> 0 | Z13: =IF(ISERROR(H13/E13),0,(H13/E13)) -> 0
A14: =Pitching!A57 -> 72 | B14: =Pitching!B57 -> 0 | C14: =SUM(Pitching!D57:D61) -> 0 | D14: =SUM(Pitching!E57:E61) -> 0 | E14: =SUM(Pitching!F57:F61) -> 0 | F14: =SUM(Pitching!G57:G61) -> 0 | G14: =SUM(Pitching!H57:H61) -> 0 | H14: =SUM(Pitching!I57:I61) -> 0 | I14: =SUM(Pitching!J57:J61) -> 0 | J14: =SUM(Pitching!K57:K61) -> 0 | K14: =SUM(Pitching!L57:L61) -> 0 | L14: =SUM(Pitching!M57:M61) -> 0 | M14: =SUM(Pitching!N57:N61) -> 0 | N14: =SUM(Pitching!O57:O61) -> 0 | O14: =SUM(Pitching!P57:P61) -> 0 | P14: =SUM(Pitching!Q57:Q61) -> 0 | Q14: =SUM(Pitching!R57:R61) -> 0 | R14: =SUM(Pitching!S57:S61) -> 0 | S14: =COUNTA(Pitching!T57:T61) -> 0 | T14: =COUNTA(Pitching!U57:U61) -> 0 | U14: =COUNTA(Pitching!V57:V61) -> 0 | W14: =IF(ISERROR(7*G14/C14),"-",7*G14/C14) -> - | X14: =IF(ISERROR(L14/C14),0,L14/C14) -> 0 | Y14: =IF(ISERROR((M14+H14)/C14),0,(M14+H14)/C14) -> 0 | Z14: =IF(ISERROR(H14/E14),0,(H14/E14)) -> 0
A15: =Pitching!A62 -> 73 | B15: =Pitching!B62 -> 0 | C15: =SUM(Pitching!D62:D66) -> 0 | D15: =SUM(Pitching!E62:E66) -> 0 | E15: =SUM(Pitching!F62:F66) -> 0 | F15: =SUM(Pitching!G62:G66) -> 0 | G15: =SUM(Pitching!H62:H66) -> 0 | H15: =SUM(Pitching!I62:I66) -> 0 | I15: =SUM(Pitching!J62:J66) -> 0 | J15: =SUM(Pitching!K62:K66) -> 0 | K15: =SUM(Pitching!L62:L66) -> 0 | L15: =SUM(Pitching!M62:M66) -> 0 | M15: =SUM(Pitching!N62:N66) -> 0 | N15: =SUM(Pitching!O62:O66) -> 0 | O15: =SUM(Pitching!P62:P66) -> 0 | P15: =SUM(Pitching!Q62:Q66) -> 0 | Q15: =SUM(Pitching!R62:R66) -> 0 | R15: =SUM(Pitching!S62:S66) -> 0 | S15: =COUNTA(Pitching!T62:T66) -> 0 | T15: =COUNTA(Pitching!U62:U66) -> 0 | U15: =COUNTA(Pitching!V62:V66) -> 0 | W15: =IF(ISERROR(7*G15/C15),"-",7*G15/C15) -> - | X15: =IF(ISERROR(L15/C15),0,L15/C15) -> 0 | Y15: =IF(ISERROR((M15+H15)/C15),0,(M15+H15)/C15) -> 0 | Z15: =IF(ISERROR(H15/E15),0,(H15/E15)) -> 0
A16: =Pitching!A67 -> 74 | B16: =Pitching!B67 -> 0 | C16: =SUM(Pitching!D67:D71) -> 0 | D16: =SUM(Pitching!E67:E71) -> 0 | E16: =SUM(Pitching!F67:F71) -> 0 | F16: =SUM(Pitching!G67:G71) -> 0 | G16: =SUM(Pitching!H67:H71) -> 0 | H16: =SUM(Pitching!I67:I71) -> 0 | I16: =SUM(Pitching!J67:J71) -> 0 | J16: =SUM(Pitching!K67:K71) -> 0 | K16: =SUM(Pitching!L67:L71) -> 0 | L16: =SUM(Pitching!M67:M71) -> 0 | M16: =SUM(Pitching!N67:N71) -> 0 | N16: =SUM(Pitching!O67:O71) -> 0 | O16: =SUM(Pitching!P67:P71) -> 0 | P16: =SUM(Pitching!Q67:Q71) -> 0 | Q16: =SUM(Pitching!R67:R71) -> 0 | R16: =SUM(Pitching!S67:S71) -> 0 | S16: =COUNTA(Pitching!T67:T71) -> 0 | T16: =COUNTA(Pitching!U67:U71) -> 0 | U16: =COUNTA(Pitching!V67:V71) -> 0 | W16: =IF(ISERROR(7*G16/C16),"-",7*G16/C16) -> - | X16: =IF(ISERROR(L16/C16),0,L16/C16) -> 0 | Y16: =IF(ISERROR((M16+H16)/C16),0,(M16+H16)/C16) -> 0 | Z16: =IF(ISERROR(H16/E16),0,(H16/E16)) -> 0
A17: =Pitching!A72 -> 75 | B17: =Pitching!B72 -> 0 | C17: =SUM(Pitching!D72:D76) -> 0 | D17: =SUM(Pitching!E72:E76) -> 0 | E17: =SUM(Pitching!F72:F76) -> 0 | F17: =SUM(Pitching!G72:G76) -> 0 | G17: =SUM(Pitching!H72:H76) -> 0 | H17: =SUM(Pitching!I72:I76) -> 0 | I17: =SUM(Pitching!J72:J76) -> 0 | J17: =SUM(Pitching!K72:K76) -> 0 | K17: =SUM(Pitching!L72:L76) -> 0 | L17: =SUM(Pitching!M72:M76) -> 0 | M17: =SUM(Pitching!N72:N76) -> 0 | N17: =SUM(Pitching!O72:O76) -> 0 | O17: =SUM(Pitching!P72:P76) -> 0 | P17: =SUM(Pitching!Q72:Q76) -> 0 | Q17: =SUM(Pitching!R72:R76) -> 0 | R17: =SUM(Pitching!S72:S76) -> 0 | S17: =COUNTA(Pitching!T72:T76) -> 0 | T17: =COUNTA(Pitching!U72:U76) -> 0 | U17: =COUNTA(Pitching!V72:V76) -> 0 | W17: =IF(ISERROR(7*G17/C17),"-",7*G17/C17) -> - | X17: =IF(ISERROR(L17/C17),0,L17/C17) -> 0 | Y17: =IF(ISERROR((M17+H17)/C17),0,(M17+H17)/C17) -> 0 | Z17: =IF(ISERROR(H17/E17),0,(H17/E17)) -> 0
